{"text_format":"1","workbook":"xlsx","n_sheets":12,"sheets":["Celkem za projekt","Uchazeč","Další účastník 1","Další účastník 2","Další účastník 3","Další účastník 4","Další účastník 5","Další účastník 6","Další účastník 7","Další účastník 8","Další účastník 9","Další účastník 10"],"not_rendered":{"charts":0,"images":14,"macros":1,"external_links":0,"defined_names":12,"comments":0,"pivot_tables":0},"unopened":[],"bounds":{"document_bytes":16777216,"sheet_cells":100000,"rows_first":2000,"rows_last":500,"rows_between":2000,"halvings":0,"cell_chars":16384,"cell_head_chars":4096},"cells_cut":0,"cells_raw":0,"read":"whole","date_system":"1900"}

{"sheet":"Celkem za projekt","index":0,"n_rows":45,"n_cols":16,"rows_kept":45,"cut":false,"hidden":false,"merged":[[7,15,8,16],[10,15,11,16],[23,3,23,10],[24,5,24,10],[25,3,26,3],[25,4,26,4],[25,5,26,5],[25,6,25,9],[25,10,26,10],[38,3,39,3],[38,4,39,4],[38,5,39,5],[38,6,38,9],[38,10,39,10]]}
[]
[]
[null,null,null,"DO DODATKU - SČÍTÁ SAMO"]
[]
[null,null,null,null,"Náklady",{"$f":"Uchazeč!D4","v":" (v Kč)"},{"$f":"Uchazeč!E4","v":" (v Kč)"},{"$f":"Uchazeč!F4","v":" (v Kč)"},{"$f":"Uchazeč!G4","v":" (v Kč)"},"Celkem (v Kč)"]
[null,null,null,"A","Osobní náklady",{"$f":"Uchazeč!D5+'Další účastník 1'!D5+'Další účastník 2'!D5+'Další účastník 3'!D5+'Další účastník 4'!D5+'Další účastník 5'!D5+'Další účastník 6'!D5+'Další účastník 7'!D5+'Další účastník 8'!D5+'Další účastník 9'!D5+'Další účastník 10'!D5","v":0},{"$f":"Uchazeč!E5+'Další účastník 1'!E5+'Další účastník 2'!E5+'Další účastník 3'!E5+'Další účastník 4'!E5+'Další účastník 5'!E5+'Další účastník 6'!E5+'Další účastník 7'!E5+'Další účastník 8'!E5+'Další účastník 9'!E5+'Další účastník 10'!E5","v":0},{"$f":"Uchazeč!F5+'Další účastník 1'!F5+'Další účastník 2'!F5+'Další účastník 3'!F5+'Další účastník 4'!F5+'Další účastník 5'!F5+'Další účastník 6'!F5+'Další účastník 7'!F5+'Další účastník 8'!F5+'Další účastník 9'!F5+'Další účastník 10'!F5","v":0},{"$f":"Uchazeč!G5+'Další účastník 1'!G5+'Další účastník 2'!G5+'Další účastník 3'!G5+'Další účastník 4'!G5+'Další účastník 5'!G5+'Další účastník 6'!G5+'Další účastník 7'!G5+'Další účastník 8'!G5+'Další účastník 9'!G5+'Další účastník 10'!G5","v":0},{"$f":"SUM(F6:I6)","v":0}]
[null,null,null,"B","Investiční náklady",{"$f":"Uchazeč!D6+'Další účastník 1'!D6+'Další účastník 2'!D6+'Další účastník 3'!D6+'Další účastník 4'!D6+'Další účastník 5'!D6+'Další účastník 6'!D6+'Další účastník 7'!D6+'Další účastník 8'!D6+'Další účastník 9'!D6+'Další účastník 10'!D6","v":0},{"$f":"Uchazeč!E6+'Další účastník 1'!E6+'Další účastník 2'!E6+'Další účastník 3'!E6+'Další účastník 4'!E6+'Další účastník 5'!E6+'Další účastník 6'!E6+'Další účastník 7'!E6+'Další účastník 8'!E6+'Další účastník 9'!E6+'Další účastník 10'!E6","v":0},{"$f":"Uchazeč!F6+'Další účastník 1'!F6+'Další účastník 2'!F6+'Další účastník 3'!F6+'Další účastník 4'!F6+'Další účastník 5'!F6+'Další účastník 6'!F6+'Další účastník 7'!F6+'Další účastník 8'!F6+'Další účastník 9'!F6+'Další účastník 10'!F6","v":0},{"$f":"Uchazeč!G6+'Další účastník 1'!G6+'Další účastník 2'!G6+'Další účastník 3'!G6+'Další účastník 4'!G6+'Další účastník 5'!G6+'Další účastník 6'!G6+'Další účastník 7'!G6+'Další účastník 8'!G6+'Další účastník 9'!G6+'Další účastník 10'!G6","v":0},{"$f":"SUM(F7:I7)","v":0}]
[null,null,null,"C","Služby",{"$f":"Uchazeč!D7+'Další účastník 1'!D7+'Další účastník 2'!D7+'Další účastník 3'!D7+'Další účastník 4'!D7+'Další účastník 5'!D7+'Další účastník 6'!D7+'Další účastník 7'!D7+'Další účastník 8'!D7+'Další účastník 9'!D7+'Další účastník 10'!D7","v":0},{"$f":"Uchazeč!E7+'Další účastník 1'!E7+'Další účastník 2'!E7+'Další účastník 3'!E7+'Další účastník 4'!E7+'Další účastník 5'!E7+'Další účastník 6'!E7+'Další účastník 7'!E7+'Další účastník 8'!E7+'Další účastník 9'!E7+'Další účastník 10'!E7","v":0},{"$f":"Uchazeč!F7+'Další účastník 1'!F7+'Další účastník 2'!F7+'Další účastník 3'!F7+'Další účastník 4'!F7+'Další účastník 5'!F7+'Další účastník 6'!F7+'Další účastník 7'!F7+'Další účastník 8'!F7+'Další účastník 9'!F7+'Další účastník 10'!F7","v":0},{"$f":"Uchazeč!G7+'Další účastník 1'!G7+'Další účastník 2'!G7+'Další účastník 3'!G7+'Další účastník 4'!G7+'Další účastník 5'!G7+'Další účastník 6'!G7+'Další účastník 7'!G7+'Další účastník 8'!G7+'Další účastník 9'!G7+'Další účastník 10'!G7","v":0},{"$f":"SUM(F8:I8)","v":0},null,null,null,null,null,"pro potřeby TA ČR"]
[null,null,null,"D","Ostatní náklady",{"$f":"Uchazeč!D8+'Další účastník 1'!D8+'Další účastník 2'!D8+'Další účastník 3'!D8+'Další účastník 4'!D8+'Další účastník 5'!D8+'Další účastník 6'!D8+'Další účastník 7'!D8+'Další účastník 8'!D8+'Další účastník 9'!D8+'Další účastník 10'!D8","v":0},{"$f":"Uchazeč!E8+'Další účastník 1'!E8+'Další účastník 2'!E8+'Další účastník 3'!E8+'Další účastník 4'!E8+'Další účastník 5'!E8+'Další účastník 6'!E8+'Další účastník 7'!E8+'Další účastník 8'!E8+'Další účastník 9'!E8+'Další účastník 10'!E8","v":0},{"$f":"Uchazeč!F8+'Další účastník 1'!F8+'Další účastník 2'!F8+'Další účastník 3'!F8+'Další účastník 4'!F8+'Další účastník 5'!F8+'Další účastník 6'!F8+'Další účastník 7'!F8+'Další účastník 8'!F8+'Další účastník 9'!F8+'Další účastník 10'!F8","v":0},{"$f":"Uchazeč!G8+'Další účastník 1'!G8+'Další účastník 2'!G8+'Další účastník 3'!G8+'Další účastník 4'!G8+'Další účastník 5'!G8+'Další účastník 6'!G8+'Další účastník 7'!G8+'Další účastník 8'!G8+'Další účastník 9'!G8+'Další účastník 10'!G8","v":0},{"$f":"SUM(F9:I9)","v":0}]
[null,null,null,"E","Subdodávky",{"$f":"Uchazeč!D9+'Další účastník 1'!D9+'Další účastník 2'!D9+'Další účastník 3'!D9+'Další účastník 4'!D9+'Další účastník 5'!D9+'Další účastník 6'!D9+'Další účastník 7'!D9+'Další účastník 8'!D9+'Další účastník 9'!D9+'Další účastník 10'!D9","v":0},{"$f":"Uchazeč!E9+'Další účastník 1'!E9+'Další účastník 2'!E9+'Další účastník 3'!E9+'Další účastník 4'!E9+'Další účastník 5'!E9+'Další účastník 6'!E9+'Další účastník 7'!E9+'Další účastník 8'!E9+'Další účastník 9'!E9+'Další účastník 10'!E9","v":0},{"$f":"Uchazeč!F9+'Další účastník 1'!F9+'Další účastník 2'!F9+'Další účastník 3'!F9+'Další účastník 4'!F9+'Další účastník 5'!F9+'Další účastník 6'!F9+'Další účastník 7'!F9+'Další účastník 8'!F9+'Další účastník 9'!F9+'Další účastník 10'!F9","v":0},{"$f":"Uchazeč!G9+'Další účastník 1'!G9+'Další účastník 2'!G9+'Další účastník 3'!G9+'Další účastník 4'!G9+'Další účastník 5'!G9+'Další účastník 6'!G9+'Další účastník 7'!G9+'Další účastník 8'!G9+'Další účastník 9'!G9+'Další účastník 10'!G9","v":0},{"$f":"SUM(F10:I10)","v":0}]
[null,null,null,null,"NÁKLADY CELKEM",{"$f":"SUM(F6,F7,F8,F9,F10)","v":0},{"$f":"SUM(G6,G7,G8,G9,G10)","v":0},{"$f":"SUM(H6,H7,H8,H9,H10)","v":0},{"$f":"SUM(I6,I7,I8,I9,I10)","v":0},{"$f":"SUM(J6,J7,J8,J9,J10)","v":0},null,null,null,null,null,"pro potřeby TA ČR"]
[null,null,null,null,"Zdroje ",{"$f":"Uchazeč!D11","v":" (v Kč)"},{"$f":"Uchazeč!E11","v":" (v Kč)"},{"$f":"Uchazeč!F11","v":" (v Kč)"},{"$f":"Uchazeč!G11","v":" (v Kč)"},"Celkem (v Kč)"]
[null,null,null,"ZD","Podpora",{"$f":"Uchazeč!D12+'Další účastník 1'!D12+'Další účastník 2'!D12+'Další účastník 3'!D12+'Další účastník 4'!D12+'Další účastník 5'!D12+'Další účastník 6'!D12+'Další účastník 7'!D12+'Další účastník 8'!D12+'Další účastník 9'!D12+'Další účastník 10'!D12","v":0},{"$f":"Uchazeč!E12+'Další účastník 1'!E12+'Další účastník 2'!E12+'Další účastník 3'!E12+'Další účastník 4'!E12+'Další účastník 5'!E12+'Další účastník 6'!E12+'Další účastník 7'!E12+'Další účastník 8'!E12+'Další účastník 9'!E12+'Další účastník 10'!E12","v":0},{"$f":"Uchazeč!F12+'Další účastník 1'!F12+'Další účastník 2'!F12+'Další účastník 3'!F12+'Další účastník 4'!F12+'Další účastník 5'!F12+'Další účastník 6'!F12+'Další účastník 7'!F12+'Další účastník 8'!F12+'Další účastník 9'!F12+'Další účastník 10'!F12","v":0},{"$f":"Uchazeč!G12+'Další účastník 1'!G12+'Další účastník 2'!G12+'Další účastník 3'!G12+'Další účastník 4'!G12+'Další účastník 5'!G12+'Další účastník 6'!G12+'Další účastník 7'!G12+'Další účastník 8'!G12+'Další účastník 9'!G12+'Další účastník 10'!G12","v":0},{"$f":"SUM(F13:I13)","v":0}]
[null,null,null,"ZDI","Z toho investiční podpora",{"$f":"Uchazeč!D13+'Další účastník 1'!D13+'Další účastník 2'!D13+'Další účastník 3'!D13+'Další účastník 4'!D13+'Další účastník 5'!D13+'Další účastník 6'!D13+'Další účastník 7'!D13+'Další účastník 8'!D13+'Další účastník 9'!D13+'Další účastník 10'!D13","v":0},{"$f":"Uchazeč!E13+'Další účastník 1'!E13+'Další účastník 2'!E13+'Další účastník 3'!E13+'Další účastník 4'!E13+'Další účastník 5'!E13+'Další účastník 6'!E13+'Další účastník 7'!E13+'Další účastník 8'!E13+'Další účastník 9'!E13+'Další účastník 10'!E13","v":0},{"$f":"Uchazeč!F13+'Další účastník 1'!F13+'Další účastník 2'!F13+'Další účastník 3'!F13+'Další účastník 4'!F13+'Další účastník 5'!F13+'Další účastník 6'!F13+'Další účastník 7'!F13+'Další účastník 8'!F13+'Další účastník 9'!F13+'Další účastník 10'!F13","v":0},{"$f":"Uchazeč!G13+'Další účastník 1'!G13+'Další účastník 2'!G13+'Další účastník 3'!G13+'Další účastník 4'!G13+'Další účastník 5'!G13+'Další účastník 6'!G13+'Další účastník 7'!G13+'Další účastník 8'!G13+'Další účastník 9'!G13+'Další účastník 10'!G13","v":0},{"$f":"SUM(F14:I14)","v":0}]
[null,null,null,"ZDN","Z toho neinvestiční podpora",{"$f":"Uchazeč!D14+'Další účastník 1'!D14+'Další účastník 2'!D14+'Další účastník 3'!D14+'Další účastník 4'!D14+'Další účastník 5'!D14+'Další účastník 6'!D14+'Další účastník 7'!D14+'Další účastník 8'!D14+'Další účastník 9'!D14+'Další účastník 10'!D14","v":0},{"$f":"Uchazeč!E14+'Další účastník 1'!E14+'Další účastník 2'!E14+'Další účastník 3'!E14+'Další účastník 4'!E14+'Další účastník 5'!E14+'Další účastník 6'!E14+'Další účastník 7'!E14+'Další účastník 8'!E14+'Další účastník 9'!E14+'Další účastník 10'!E14","v":0},{"$f":"Uchazeč!F14+'Další účastník 1'!F14+'Další účastník 2'!F14+'Další účastník 3'!F14+'Další účastník 4'!F14+'Další účastník 5'!F14+'Další účastník 6'!F14+'Další účastník 7'!F14+'Další účastník 8'!F14+'Další účastník 9'!F14+'Další účastník 10'!F14","v":0},{"$f":"Uchazeč!G14+'Další účastník 1'!G14+'Další účastník 2'!G14+'Další účastník 3'!G14+'Další účastník 4'!G14+'Další účastník 5'!G14+'Další účastník 6'!G14+'Další účastník 7'!G14+'Další účastník 8'!G14+'Další účastník 9'!G14+'Další účastník 10'!G14","v":0},{"$f":"SUM(F15:I15)","v":0}]
[null,null,null,"ZO","Ostatní veřejné zdroje",{"$f":"Uchazeč!D15+'Další účastník 1'!D15+'Další účastník 2'!D15+'Další účastník 3'!D15+'Další účastník 4'!D15+'Další účastník 5'!D15+'Další účastník 6'!D15+'Další účastník 7'!D15+'Další účastník 8'!D15+'Další účastník 9'!D15+'Další účastník 10'!D15","v":0},{"$f":"Uchazeč!E15+'Další účastník 1'!E15+'Další účastník 2'!E15+'Další účastník 3'!E15+'Další účastník 4'!E15+'Další účastník 5'!E15+'Další účastník 6'!E15+'Další účastník 7'!E15+'Další účastník 8'!E15+'Další účastník 9'!E15+'Další účastník 10'!E15","v":0},{"$f":"Uchazeč!F15+'Další účastník 1'!F15+'Další účastník 2'!F15+'Další účastník 3'!F15+'Další účastník 4'!F15+'Další účastník 5'!F15+'Další účastník 6'!F15+'Další účastník 7'!F15+'Další účastník 8'!F15+'Další účastník 9'!F15+'Další účastník 10'!F15","v":0},{"$f":"Uchazeč!G15+'Další účastník 1'!G15+'Další účastník 2'!G15+'Další účastník 3'!G15+'Další účastník 4'!G15+'Další účastník 5'!G15+'Další účastník 6'!G15+'Další účastník 7'!G15+'Další účastník 8'!G15+'Další účastník 9'!G15+'Další účastník 10'!G15","v":0},0]
[null,null,null,"ZN","Neveřejné zdroje",{"$f":"Uchazeč!D16+'Další účastník 1'!D16+'Další účastník 2'!D16+'Další účastník 3'!D16+'Další účastník 4'!D16+'Další účastník 5'!D16+'Další účastník 6'!D16+'Další účastník 7'!D16+'Další účastník 8'!D16+'Další účastník 9'!D16+'Další účastník 10'!D16","v":0},{"$f":"Uchazeč!E16+'Další účastník 1'!E16+'Další účastník 2'!E16+'Další účastník 3'!E16+'Další účastník 4'!E16+'Další účastník 5'!E16+'Další účastník 6'!E16+'Další účastník 7'!E16+'Další účastník 8'!E16+'Další účastník 9'!E16+'Další účastník 10'!E16","v":0},{"$f":"Uchazeč!F16+'Další účastník 1'!F16+'Další účastník 2'!F16+'Další účastník 3'!F16+'Další účastník 4'!F16+'Další účastník 5'!F16+'Další účastník 6'!F16+'Další účastník 7'!F16+'Další účastník 8'!F16+'Další účastník 9'!F16+'Další účastník 10'!F16","v":0},{"$f":"Uchazeč!G16+'Další účastník 1'!G16+'Další účastník 2'!G16+'Další účastník 3'!G16+'Další účastník 4'!G16+'Další účastník 5'!G16+'Další účastník 6'!G16+'Další účastník 7'!G16+'Další účastník 8'!G16+'Další účastník 9'!G16+'Další účastník 10'!G16","v":0},0]
[null,null,null,"ZC","ZDROJE CELKEM",{"$f":"Uchazeč!D17+'Další účastník 1'!D17+'Další účastník 2'!D17+'Další účastník 3'!D17+'Další účastník 4'!D17+'Další účastník 5'!D17+'Další účastník 6'!D17+'Další účastník 7'!D17+'Další účastník 8'!D17+'Další účastník 9'!D17+'Další účastník 10'!D17","v":0},{"$f":"Uchazeč!E17+'Další účastník 1'!E17+'Další účastník 2'!E17+'Další účastník 3'!E17+'Další účastník 4'!E17+'Další účastník 5'!E17+'Další účastník 6'!E17+'Další účastník 7'!E17+'Další účastník 8'!E17+'Další účastník 9'!E17+'Další účastník 10'!E17","v":0},{"$f":"Uchazeč!F17+'Další účastník 1'!F17+'Další účastník 2'!F17+'Další účastník 3'!F17+'Další účastník 4'!F17+'Další účastník 5'!F17+'Další účastník 6'!F17+'Další účastník 7'!F17+'Další účastník 8'!F17+'Další účastník 9'!F17+'Další účastník 10'!F17","v":0},{"$f":"Uchazeč!G17+'Další účastník 1'!G17+'Další účastník 2'!G17+'Další účastník 3'!G17+'Další účastník 4'!G17+'Další účastník 5'!G17+'Další účastník 6'!G17+'Další účastník 7'!G17+'Další účastník 8'!G17+'Další účastník 9'!G17+'Další účastník 10'!G17","v":0},{"$f":"SUM(F18:I18)","v":0}]
[null,null,null,null,"Míra podpory",{"$f":"IF(F11=0,0,F13/F11)","v":0},{"$f":"IF(G11=0,0,G13/G11)","v":0},{"$f":"IF(H11=0,0,H13/H11)","v":0},{"$f":"IF(I11=0,0,I13/I11)","v":0},{"$f":"IF(J11=0,0,J13/J11)","v":0}]
[]
[]
[]
[]
[null,null,null,"Celkem za projekt (v Kč)"]
[null,null,null,"číslo projektu",null,{"$f":"Uchazeč!D23","v":0}]
[null,null,null,null,"Náklady","Jednotka","Rok ",null,null,null,"Celkem"]
[null,null,null,null,null,null,{"$f":"Uchazeč!E26","v":0},{"$f":"Uchazeč!F26","v":0},{"$f":"Uchazeč!G26","v":0},{"$f":"Uchazeč!H26","v":0}]
[null,null,null,"A","Osobní náklady","Kč",{"$f":"Uchazeč!E27+'Další účastník 1'!E27+'Další účastník 2'!E27+'Další účastník 3'!E27+'Další účastník 4'!E27+'Další účastník 5'!E27+'Další účastník 6'!E27+'Další účastník 7'!E27+'Další účastník 8'!E27+'Další účastník 9'!E27+'Další účastník 10'!E27","v":0},{"$f":"Uchazeč!F27+'Další účastník 1'!F27+'Další účastník 2'!F27+'Další účastník 3'!F27+'Další účastník 4'!F27+'Další účastník 5'!F27+'Další účastník 6'!F27+'Další účastník 7'!F27+'Další účastník 8'!F27+'Další účastník 9'!F27+'Další účastník 10'!F27","v":0},{"$f":"Uchazeč!G27+'Další účastník 1'!G27+'Další účastník 2'!G27+'Další účastník 3'!G27+'Další účastník 4'!G27+'Další účastník 5'!G27+'Další účastník 6'!G27+'Další účastník 7'!G27+'Další účastník 8'!G27+'Další účastník 9'!G27+'Další účastník 10'!G27","v":0},{"$f":"Uchazeč!H27+'Další účastník 1'!H27+'Další účastník 2'!H27+'Další účastník 3'!H27+'Další účastník 4'!H27+'Další účastník 5'!H27+'Další účastník 6'!H27+'Další účastník 7'!H27+'Další účastník 8'!H27+'Další účastník 9'!H27+'Další účastník 10'!H27","v":0},{"$f":"SUM(G28:J28)","v":0}]
[null,null,null,"B","Investiční náklady","Kč",{"$f":"Uchazeč!E28+'Další účastník 1'!E28+'Další účastník 2'!E28+'Další účastník 3'!E28+'Další účastník 4'!E28+'Další účastník 5'!E28+'Další účastník 6'!E28+'Další účastník 7'!E28+'Další účastník 8'!E28+'Další účastník 9'!E28+'Další účastník 10'!E28","v":0},{"$f":"Uchazeč!F28+'Další účastník 1'!F28+'Další účastník 2'!F28+'Další účastník 3'!F28+'Další účastník 4'!F28+'Další účastník 5'!F28+'Další účastník 6'!F28+'Další účastník 7'!F28+'Další účastník 8'!F28+'Další účastník 9'!F28+'Další účastník 10'!F28","v":0},{"$f":"Uchazeč!G28+'Další účastník 1'!G28+'Další účastník 2'!G28+'Další účastník 3'!G28+'Další účastník 4'!G28+'Další účastník 5'!G28+'Další účastník 6'!G28+'Další účastník 7'!G28+'Další účastník 8'!G28+'Další účastník 9'!G28+'Další účastník 10'!G28","v":0},{"$f":"Uchazeč!H28+'Další účastník 1'!H28+'Další účastník 2'!H28+'Další účastník 3'!H28+'Další účastník 4'!H28+'Další účastník 5'!H28+'Další účastník 6'!H28+'Další účastník 7'!H28+'Další účastník 8'!H28+'Další účastník 9'!H28+'Další účastník 10'!H28","v":0},0]
[null,null,null,null,"Dlouhodobý hmotný majetek","Kč",{"$f":"Uchazeč!E29+'Další účastník 1'!E29+'Další účastník 2'!E29+'Další účastník 3'!E29+'Další účastník 4'!E29+'Další účastník 5'!E29+'Další účastník 6'!E29+'Další účastník 7'!E29+'Další účastník 8'!E29+'Další účastník 9'!E29+'Další účastník 10'!E29","v":0},{"$f":"Uchazeč!F29+'Další účastník 1'!F29+'Další účastník 2'!F29+'Další účastník 3'!F29+'Další účastník 4'!F29+'Další účastník 5'!F29+'Další účastník 6'!F29+'Další účastník 7'!F29+'Další účastník 8'!F29+'Další účastník 9'!F29+'Další účastník 10'!F29","v":0},{"$f":"Uchazeč!G29+'Další účastník 1'!G29+'Další účastník 2'!G29+'Další účastník 3'!G29+'Další účastník 4'!G29+'Další účastník 5'!G29+'Další účastník 6'!G29+'Další účastník 7'!G29+'Další účastník 8'!G29+'Další účastník 9'!G29+'Další účastník 10'!G29","v":0},{"$f":"Uchazeč!H29+'Další účastník 1'!H29+'Další účastník 2'!H29+'Další účastník 3'!H29+'Další účastník 4'!H29+'Další účastník 5'!H29+'Další účastník 6'!H29+'Další účastník 7'!H29+'Další účastník 8'!H29+'Další účastník 9'!H29+'Další účastník 10'!H29","v":0},0]
[null,null,null,null,"Dlouhodobý nehmotný majetek","Kč",{"$f":"Uchazeč!E30+'Další účastník 1'!E30+'Další účastník 2'!E30+'Další účastník 3'!E30+'Další účastník 4'!E30+'Další účastník 5'!E30+'Další účastník 6'!E30+'Další účastník 7'!E30+'Další účastník 8'!E30+'Další účastník 9'!E30+'Další účastník 10'!E30","v":0},{"$f":"Uchazeč!F30+'Další účastník 1'!F30+'Další účastník 2'!F30+'Další účastník 3'!F30+'Další účastník 4'!F30+'Další účastník 5'!F30+'Další účastník 6'!F30+'Další účastník 7'!F30+'Další účastník 8'!F30+'Další účastník 9'!F30+'Další účastník 10'!F30","v":0},{"$f":"Uchazeč!G30+'Další účastník 1'!G30+'Další účastník 2'!G30+'Další účastník 3'!G30+'Další účastník 4'!G30+'Další účastník 5'!G30+'Další účastník 6'!G30+'Další účastník 7'!G30+'Další účastník 8'!G30+'Další účastník 9'!G30+'Další účastník 10'!G30","v":0},{"$f":"Uchazeč!H30+'Další účastník 1'!H30+'Další účastník 2'!H30+'Další účastník 3'!H30+'Další účastník 4'!H30+'Další účastník 5'!H30+'Další účastník 6'!H30+'Další účastník 7'!H30+'Další účastník 8'!H30+'Další účastník 9'!H30+'Další účastník 10'!H30","v":0},0]
[null,null,null,"C","Služby","Kč",{"$f":"Uchazeč!E31+'Další účastník 1'!E31+'Další účastník 2'!E31+'Další účastník 3'!E31+'Další účastník 4'!E31+'Další účastník 5'!E31+'Další účastník 6'!E31+'Další účastník 7'!E31+'Další účastník 8'!E31+'Další účastník 9'!E31+'Další účastník 10'!E31","v":0},{"$f":"Uchazeč!F31+'Další účastník 1'!F31+'Další účastník 2'!F31+'Další účastník 3'!F31+'Další účastník 4'!F31+'Další účastník 5'!F31+'Další účastník 6'!F31+'Další účastník 7'!F31+'Další účastník 8'!F31+'Další účastník 9'!F31+'Další účastník 10'!F31","v":0},{"$f":"Uchazeč!G31+'Další účastník 1'!G31+'Další účastník 2'!G31+'Další účastník 3'!G31+'Další účastník 4'!G31+'Další účastník 5'!G31+'Další účastník 6'!G31+'Další účastník 7'!G31+'Další účastník 8'!G31+'Další účastník 9'!G31+'Další účastník 10'!G31","v":0},{"$f":"Uchazeč!H31+'Další účastník 1'!H31+'Další účastník 2'!H31+'Další účastník 3'!H31+'Další účastník 4'!H31+'Další účastník 5'!H31+'Další účastník 6'!H31+'Další účastník 7'!H31+'Další účastník 8'!H31+'Další účastník 9'!H31+'Další účastník 10'!H31","v":0},0]
[null,null,null,"D","Ostatní náklady","Kč",{"$f":"Uchazeč!E32+'Další účastník 1'!E32+'Další účastník 2'!E32+'Další účastník 3'!E32+'Další účastník 4'!E32+'Další účastník 5'!E32+'Další účastník 6'!E32+'Další účastník 7'!E32+'Další účastník 8'!E32+'Další účastník 9'!E32+'Další účastník 10'!E32","v":0},{"$f":"Uchazeč!F32+'Další účastník 1'!F32+'Další účastník 2'!F32+'Další účastník 3'!F32+'Další účastník 4'!F32+'Další účastník 5'!F32+'Další účastník 6'!F32+'Další účastník 7'!F32+'Další účastník 8'!F32+'Další účastník 9'!F32+'Další účastník 10'!F32","v":0},{"$f":"Uchazeč!G32+'Další účastník 1'!G32+'Další účastník 2'!G32+'Další účastník 3'!G32+'Další účastník 4'!G32+'Další účastník 5'!G32+'Další účastník 6'!G32+'Další účastník 7'!G32+'Další účastník 8'!G32+'Další účastník 9'!G32+'Další účastník 10'!G32","v":0},{"$f":"Uchazeč!H32+'Další účastník 1'!H32+'Další účastník 2'!H32+'Další účastník 3'!H32+'Další účastník 4'!H32+'Další účastník 5'!H32+'Další účastník 6'!H32+'Další účastník 7'!H32+'Další účastník 8'!H32+'Další účastník 9'!H32+'Další účastník 10'!H32","v":0},0]
[null,null,null,null,"Další provozní náklady","Kč",{"$f":"Uchazeč!E33+'Další účastník 1'!E33+'Další účastník 2'!E33+'Další účastník 3'!E33+'Další účastník 4'!E33+'Další účastník 5'!E33+'Další účastník 6'!E33+'Další účastník 7'!E33+'Další účastník 8'!E33+'Další účastník 9'!E33+'Další účastník 10'!E33","v":0},{"$f":"Uchazeč!F33+'Další účastník 1'!F33+'Další účastník 2'!F33+'Další účastník 3'!F33+'Další účastník 4'!F33+'Další účastník 5'!F33+'Další účastník 6'!F33+'Další účastník 7'!F33+'Další účastník 8'!F33+'Další účastník 9'!F33+'Další účastník 10'!F33","v":0},{"$f":"Uchazeč!G33+'Další účastník 1'!G33+'Další účastník 2'!G33+'Další účastník 3'!G33+'Další účastník 4'!G33+'Další účastník 5'!G33+'Další účastník 6'!G33+'Další účastník 7'!G33+'Další účastník 8'!G33+'Další účastník 9'!G33+'Další účastník 10'!G33","v":0},{"$f":"Uchazeč!H33+'Další účastník 1'!H33+'Další účastník 2'!H33+'Další účastník 3'!H33+'Další účastník 4'!H33+'Další účastník 5'!H33+'Další účastník 6'!H33+'Další účastník 7'!H33+'Další účastník 8'!H33+'Další účastník 9'!H33+'Další účastník 10'!H33","v":0},0]
[null,null,null,null,"Cestovní náhrady","Kč",{"$f":"Uchazeč!E34+'Další účastník 1'!E34+'Další účastník 2'!E34+'Další účastník 3'!E34+'Další účastník 4'!E34+'Další účastník 5'!E34+'Další účastník 6'!E34+'Další účastník 7'!E34+'Další účastník 8'!E34+'Další účastník 9'!E34+'Další účastník 10'!E34","v":0},{"$f":"Uchazeč!F34+'Další účastník 1'!F34+'Další účastník 2'!F34+'Další účastník 3'!F34+'Další účastník 4'!F34+'Další účastník 5'!F34+'Další účastník 6'!F34+'Další účastník 7'!F34+'Další účastník 8'!F34+'Další účastník 9'!F34+'Další účastník 10'!F34","v":0},{"$f":"Uchazeč!G34+'Další účastník 1'!G34+'Další účastník 2'!G34+'Další účastník 3'!G34+'Další účastník 4'!G34+'Další účastník 5'!G34+'Další účastník 6'!G34+'Další účastník 7'!G34+'Další účastník 8'!G34+'Další účastník 9'!G34+'Další účastník 10'!G34","v":0},{"$f":"Uchazeč!H34+'Další účastník 1'!H34+'Další účastník 2'!H34+'Další účastník 3'!H34+'Další účastník 4'!H34+'Další účastník 5'!H34+'Další účastník 6'!H34+'Další účastník 7'!H34+'Další účastník 8'!H34+'Další účastník 9'!H34+'Další účastník 10'!H34","v":0},0]
[null,null,null,null,"Nepřímé náklady (režie)","Kč",{"$f":"Uchazeč!E35+'Další účastník 1'!E35+'Další účastník 2'!E35+'Další účastník 3'!E35+'Další účastník 4'!E35+'Další účastník 5'!E35+'Další účastník 6'!E35+'Další účastník 7'!E35+'Další účastník 8'!E35+'Další účastník 9'!E35+'Další účastník 10'!E35","v":0},{"$f":"Uchazeč!F35+'Další účastník 1'!F35+'Další účastník 2'!F35+'Další účastník 3'!F35+'Další účastník 4'!F35+'Další účastník 5'!F35+'Další účastník 6'!F35+'Další účastník 7'!F35+'Další účastník 8'!F35+'Další účastník 9'!F35+'Další účastník 10'!F35","v":0},{"$f":"Uchazeč!G35+'Další účastník 1'!G35+'Další účastník 2'!G35+'Další účastník 3'!G35+'Další účastník 4'!G35+'Další účastník 5'!G35+'Další účastník 6'!G35+'Další účastník 7'!G35+'Další účastník 8'!G35+'Další účastník 9'!G35+'Další účastník 10'!G35","v":0},{"$f":"Uchazeč!H35+'Další účastník 1'!H35+'Další účastník 2'!H35+'Další účastník 3'!H35+'Další účastník 4'!H35+'Další účastník 5'!H35+'Další účastník 6'!H35+'Další účastník 7'!H35+'Další účastník 8'!H35+'Další účastník 9'!H35+'Další účastník 10'!H35","v":0},0]
[null,null,null,"E","Subdodávky","Kč",{"$f":"Uchazeč!E36+'Další účastník 1'!E36+'Další účastník 2'!E36+'Další účastník 3'!E36+'Další účastník 4'!E36+'Další účastník 5'!E36+'Další účastník 6'!E36+'Další účastník 7'!E36+'Další účastník 8'!E36+'Další účastník 9'!E36+'Další účastník 10'!E36","v":0},{"$f":"Uchazeč!F36+'Další účastník 1'!F36+'Další účastník 2'!F36+'Další účastník 3'!F36+'Další účastník 4'!F36+'Další účastník 5'!F36+'Další účastník 6'!F36+'Další účastník 7'!F36+'Další účastník 8'!F36+'Další účastník 9'!F36+'Další účastník 10'!F36","v":0},{"$f":"Uchazeč!G36+'Další účastník 1'!G36+'Další účastník 2'!G36+'Další účastník 3'!G36+'Další účastník 4'!G36+'Další účastník 5'!G36+'Další účastník 6'!G36+'Další účastník 7'!G36+'Další účastník 8'!G36+'Další účastník 9'!G36+'Další účastník 10'!G36","v":0},{"$f":"Uchazeč!H36+'Další účastník 1'!H36+'Další účastník 2'!H36+'Další účastník 3'!H36+'Další účastník 4'!H36+'Další účastník 5'!H36+'Další účastník 6'!H36+'Další účastník 7'!H36+'Další účastník 8'!H36+'Další účastník 9'!H36+'Další účastník 10'!H36","v":0},0]
[null,null,null,null,"NÁKLADY CELKEM","Kč",{"$f":"SUM(G28,G29,G32,G33,G37)","v":0},{"$f":"SUM(H28,H29,H32,H33,H37)","v":0},{"$f":"SUM(I28,I29,I32,I33,I37)","v":0},{"$f":"SUM(J28,J29,J32,J33,J37)","v":0},{"$f":"SUM(K28,K29,K32,K33,K37)","v":0}]
[null,null,null,null,"Zdroje ","Jednotka","Rok ",null,null,null,"Celkem"]
[null,null,null,null,null,null,{"$f":"G27","v":0},{"$f":"H27","v":0},{"$f":"I27","v":0},{"$f":"J27","v":0}]
[null,null,null,"ZD","Podpora","Kč",{"$f":"Uchazeč!E50+'Další účastník 1'!E50+'Další účastník 2'!E50+'Další účastník 3'!E50+'Další účastník 4'!E50+'Další účastník 5'!E50+'Další účastník 6'!E50+'Další účastník 7'!E50+'Další účastník 8'!E50+'Další účastník 9'!E50+'Další účastník 10'!E50","v":0},{"$f":"Uchazeč!F50+'Další účastník 1'!F50+'Další účastník 2'!F50+'Další účastník 3'!F50+'Další účastník 4'!F50+'Další účastník 5'!F50+'Další účastník 6'!F50+'Další účastník 7'!F50+'Další účastník 8'!F50+'Další účastník 9'!F50+'Další účastník 10'!F50","v":0},{"$f":"Uchazeč!G50+'Další účastník 1'!G50+'Další účastník 2'!G50+'Další účastník 3'!G50+'Další účastník 4'!G50+'Další účastník 5'!G50+'Další účastník 6'!G50+'Další účastník 7'!G50+'Další účastník 8'!G50+'Další účastník 9'!G50+'Další účastník 10'!G50","v":0},{"$f":"Uchazeč!H50+'Další účastník 1'!H50+'Další účastník 2'!H50+'Další účastník 3'!H50+'Další účastník 4'!H50+'Další účastník 5'!H50+'Další účastník 6'!H50+'Další účastník 7'!H50+'Další účastník 8'!H50+'Další účastník 9'!H50+'Další účastník 10'!H50","v":0},{"$f":"SUM(G41:J41)","v":0}]
[null,null,null,"ZDI","Z toho investiční podpora","Kč",{"$f":"Uchazeč!E51+'Další účastník 1'!E51+'Další účastník 2'!E51+'Další účastník 3'!E51+'Další účastník 4'!E51+'Další účastník 5'!E51+'Další účastník 6'!E51+'Další účastník 7'!E51+'Další účastník 8'!E51+'Další účastník 9'!E51+'Další účastník 10'!E51","v":0},{"$f":"Uchazeč!F51+'Další účastník 1'!F51+'Další účastník 2'!F51+'Další účastník 3'!F51+'Další účastník 4'!F51+'Další účastník 5'!F51+'Další účastník 6'!F51+'Další účastník 7'!F51+'Další účastník 8'!F51+'Další účastník 9'!F51+'Další účastník 10'!F51","v":0},{"$f":"Uchazeč!G51+'Další účastník 1'!G51+'Další účastník 2'!G51+'Další účastník 3'!G51+'Další účastník 4'!G51+'Další účastník 5'!G51+'Další účastník 6'!G51+'Další účastník 7'!G51+'Další účastník 8'!G51+'Další účastník 9'!G51+'Další účastník 10'!G51","v":0},{"$f":"Uchazeč!H51+'Další účastník 1'!H51+'Další účastník 2'!H51+'Další účastník 3'!H51+'Další účastník 4'!H51+'Další účastník 5'!H51+'Další účastník 6'!H51+'Další účastník 7'!H51+'Další účastník 8'!H51+'Další účastník 9'!H51+'Další účastník 10'!H51","v":0},{"$f":"SUM(G42:J42)","v":0}]
[null,null,null,"ZDN","Z toho neinvestiční podpora","Kč",{"$f":"Uchazeč!E52+'Další účastník 1'!E52+'Další účastník 2'!E52+'Další účastník 3'!E52+'Další účastník 4'!E52+'Další účastník 5'!E52+'Další účastník 6'!E52+'Další účastník 7'!E52+'Další účastník 8'!E52+'Další účastník 9'!E52+'Další účastník 10'!E52","v":0},{"$f":"Uchazeč!F52+'Další účastník 1'!F52+'Další účastník 2'!F52+'Další účastník 3'!F52+'Další účastník 4'!F52+'Další účastník 5'!F52+'Další účastník 6'!F52+'Další účastník 7'!F52+'Další účastník 8'!F52+'Další účastník 9'!F52+'Další účastník 10'!F52","v":0},{"$f":"Uchazeč!G52+'Další účastník 1'!G52+'Další účastník 2'!G52+'Další účastník 3'!G52+'Další účastník 4'!G52+'Další účastník 5'!G52+'Další účastník 6'!G52+'Další účastník 7'!G52+'Další účastník 8'!G52+'Další účastník 9'!G52+'Další účastník 10'!G52","v":0},{"$f":"Uchazeč!H52+'Další účastník 1'!H52+'Další účastník 2'!H52+'Další účastník 3'!H52+'Další účastník 4'!H52+'Další účastník 5'!H52+'Další účastník 6'!H52+'Další účastník 7'!H52+'Další účastník 8'!H52+'Další účastník 9'!H52+'Další účastník 10'!H52","v":0},{"$f":"SUM(G43:J43)","v":0}]
[null,null,null,"ZC","ZDROJE CELKEM","Kč",{"$f":"Uchazeč!E53+'Další účastník 1'!E53+'Další účastník 2'!E53+'Další účastník 3'!E53+'Další účastník 4'!E53+'Další účastník 5'!E53+'Další účastník 6'!E53+'Další účastník 7'!E53+'Další účastník 8'!E53+'Další účastník 9'!E53+'Další účastník 10'!E53","v":0},{"$f":"Uchazeč!F53+'Další účastník 1'!F53+'Další účastník 2'!F53+'Další účastník 3'!F53+'Další účastník 4'!F53+'Další účastník 5'!F53+'Další účastník 6'!F53+'Další účastník 7'!F53+'Další účastník 8'!F53+'Další účastník 9'!F53+'Další účastník 10'!F53","v":0},{"$f":"Uchazeč!G53+'Další účastník 1'!G53+'Další účastník 2'!G53+'Další účastník 3'!G53+'Další účastník 4'!G53+'Další účastník 5'!G53+'Další účastník 6'!G53+'Další účastník 7'!G53+'Další účastník 8'!G53+'Další účastník 9'!G53+'Další účastník 10'!G53","v":0},{"$f":"Uchazeč!H53+'Další účastník 1'!H53+'Další účastník 2'!H53+'Další účastník 3'!H53+'Další účastník 4'!H53+'Další účastník 5'!H53+'Další účastník 6'!H53+'Další účastník 7'!H53+'Další účastník 8'!H53+'Další účastník 9'!H53+'Další účastník 10'!H53","v":0},{"$f":"SUM(G44:J44)","v":0}]
[null,null,null,null,"Míra podpory","%",{"$f":"G41/G38","v":{"$error":"#DIV/0!"}},{"$f":"H41/H38","v":{"$error":"#DIV/0!"}},{"$f":"I41/I38","v":{"$error":"#DIV/0!"}},{"$f":"J41/J38","v":{"$error":"#DIV/0!"}},{"$f":"K41/K38","v":{"$error":"#DIV/0!"}}]

{"sheet":"Uchazeč","index":1,"n_rows":70,"n_cols":52,"rows_kept":70,"cut":false,"hidden":false,"merged":[[21,1,21,3],[22,1,22,2],[23,1,23,2],[23,3,23,8],[47,1,48,1],[47,2,48,2],[47,3,48,3],[47,4,47,7],[47,8,48,8],[24,1,25,1],[24,2,25,2],[24,3,25,3],[24,4,24,7],[24,8,25,8],[22,3,22,8]]}
[]
[null,"NEVYPLŇOVAT ",null,null,null,null,null,null,null,null,null,null,null,null,null,null,null,null,null,null,null,null,null,null,null,0]
[]
[null,null,"Náklady",{"$f":" E26& \" (v Kč)\"","v":" (v Kč)"},{"$f":" F26& \" (v Kč)\"","v":" (v Kč)"},{"$f":" G26& \" (v Kč)\"","v":" (v Kč)"},{"$f":" H26& \" (v Kč)\"","v":" (v Kč)"},"Celkem (v Kč)"]
[null,"A","Osobní náklady",{"$f":"E27","v":0},0,0,0,{"$f":"SUM(D5:G5)","v":0}]
[null,"B","Investiční náklady",0,0,0,0,{"$f":"SUM(D6:G6)","v":0}]
[null,"C","Služby",{"$f":"E31","v":0},0,0,0,{"$f":"SUM(D7:G7)","v":0}]
[null,"D","Ostatní náklady",0,0,0,0,{"$f":"SUM(D8:G8)","v":0}]
[null,"E","Subdodávky",{"$f":"E36","v":0},{"$f":"F36","v":0},{"$f":"G36","v":0},{"$f":"H36","v":0},{"$f":"SUM(D9:G9)","v":0}]
[null,null,"NÁKLADY CELKEM",{"$f":"SUM(D5,D6,D7,D8,D9)","v":0},{"$f":"SUM(E5,E6,E7,E8,E9)","v":0},{"$f":"SUM(F5,F6,F7,F8,F9)","v":0},{"$f":"SUM(G5,G6,G7,G8,G9)","v":0},{"$f":"SUM(H5,H6,H7,H8,H9)","v":0}]
[null,null,"Zdroje ",{"$f":"D4","v":" (v Kč)"},{"$f":"E4","v":" (v Kč)"},{"$f":"F4","v":" (v Kč)"},{"$f":"G4","v":" (v Kč)"},"Celkem (v Kč)"]
[null,"ZD","Podpora",{"$f":"E50","v":0},0,0,0,{"$f":"SUM(D12:G12)","v":0}]
[null,"ZDI","Z toho investiční podpora",0,0,0,0,{"$f":"SUM(D13:G13)","v":0}]
[null,"ZDN","Z toho neinvestiční podpora",0,0,0,0,{"$f":"SUM(D14:G14)","v":0}]
[null,"ZO","Ostatní veřejné zdroje",0,0,0,0,0]
[null,"ZN","Neveřejné zdroje",0,0,0,0,0]
[null,"ZC","ZDROJE CELKEM",{"$f":"SUM(D12)","v":0},{"$f":"SUM(E12)","v":0},{"$f":"SUM(F12)","v":0},{"$f":"SUM(G12)","v":0},{"$f":"SUM(D17:G17)","v":0}]
[null,null,"Míra podpory",{"$f":"IF(D10=0,0,D12/D10)","v":0},{"$f":"IF(E10=0,0,E12/E10)","v":0},{"$f":"IF(F10=0,0,F12/F10)","v":0},{"$f":"IF(G10=0,0,G12/G10)","v":0},{"$f":"IF(H10=0,0,H12/H10)","v":0}]
[]
[]
[]
[null,"Zvolená metoda vykazování nepřímých nákladů",null,null,"full cost",null,0.2]
[null,"Identifikační kód"]
[null,"Název uchazeče"]
[null,null,"Náklady","Jednotka","Rok1",null,null,null,"Celkem"]
[null,null,null,null,null,null,null,null,null,"Popis"]
[null,"A","Osobní náklady","Kč",null,null,null,null,{"$f":"SUM(E27:H27)","v":0},null,"Osobní náklady"]
[null,"B","Investiční náklady","Kč",{"$f":"E29+E30","v":0},{"$f":"F29+F30","v":0},{"$f":"G29+G30","v":0},{"$f":"H29+H30","v":0},0,null,"Investiční náklady"]
[null,null,"Dlouhodobý hmotný majetek","Kč",null,null,null,null,0,null,"Dlouhodobý hmotný majetek"]
[null,null,"Dlouhodobý nehmotný majetek","Kč",null,null,null,null,0,null,"Dlouhodobý nehmotný majetek"]
[null,"C","Služby","Kč",null,null,null,null,0,null,"Služby"]
[null,"D","Ostatní náklady","Kč",{"$f":"E33+E34+E35","v":0},{"$f":"F33+F34+F35","v":0},{"$f":"G33+G34+G35","v":0},{"$f":"H33+H34+H35","v":0},0,null,"Ostatní náklady"]
[null,null,"Další provozní náklady","Kč",null,null,null,null,0,null,"Další provozní náklady"]
[null,null,"Cestovní náhrady","Kč",null,null,null,null,0,null,"Cestovní náhrady"]
[null,null,"Nepřímé náklady (režie)","Kč",null,null,null,null,0,null,"Nepřímé náklady (režie)"]
[null,"E","Subdodávky","Kč",{"$f":"SUM(E37:E46)","v":0},{"$f":"SUM(F37:F46)","v":0},{"$f":"SUM(G37:G46)","v":0},{"$f":"SUM(H37:H46)","v":0},0,null,"Subdodávky"]
[null,null,"Subdodavatel 1","Kč",null,null,null,null,0,null,"Subdodavatel 1"]
[null,null,"Subdodavatel 2","Kč",null,null,null,null,{"$f":"SUM(E38:H38)","v":0},null,"Subdodavatel 2"]
[null,null,"Subdodavatel 3","Kč",null,null,null,null,0,null,"Subdodavatel 3"]
[null,null,"Subdodavatel 4","Kč",null,null,null,null,0,null,"Subdodavatel 4"]
[null,null,"Subdodavatel 5","Kč",null,null,null,null,0,null,"Subdodavatel 5"]
[null,null,"Subdodavatel 6","Kč",null,null,null,null,0,null,"Subdodavatel 6"]
[null,null,"Subdodavatel 7","Kč",null,null,null,null,0,null,"Subdodavatel 7"]
[null,null,"Subdodavatel 8","Kč",null,null,null,null,0,null,"Subdodavatel 8"]
[null,null,"Subdodavatel 9","Kč",null,null,null,null,0,null,"Subdodavatel 9"]
[null,null,"Subdodavatel 10","Kč",null,null,null,null,0,null,"Subdodavatel 10"]
[null,null,"NÁKLADY CELKEM","Kč",{"$f":"SUM(E27,E28,E31,E32,E36)","v":0},{"$f":"SUM(F27,F28,F31,F32,F36)","v":0},{"$f":"SUM(G27,G28,G31,G32,G36)","v":0},{"$f":"SUM(H27,H28,H31,H32,H36)","v":0},{"$f":"SUM(I27,I28,I31,I32,I36)","v":0}]
[null,null,"Zdroje ","Jednotka","Rok ",null,null,null,"Celkem"]
[null,null,null,null,{"$f":"E26","v":0},{"$f":"F26","v":0},{"$f":"G26","v":0},{"$f":"H26","v":0}]
[null,"ZD","Podpora","Kč",{"$f":"E47","v":0},{"$f":"F47","v":0},{"$f":"G47","v":0},{"$f":"H47","v":0},{"$f":"SUM(E50:H50)","v":0}]
[null,"ZDI","Z toho investiční podpora","Kč",{"$f":"E28","v":0},{"$f":"F28","v":0},{"$f":"G28","v":0},{"$f":"H28","v":0},{"$f":"SUM(E51:H51)","v":0}]
[null,"ZDN","Z toho neinvestiční podpora","Kč",{"$f":"E27+E31+E32+E36","v":0},{"$f":"F27+F31+F32+F36","v":0},{"$f":"G27+G31+G32+G36","v":0},{"$f":"H27+H31+H32+H36","v":0},{"$f":"SUM(E52:H52)","v":0}]
[null,"ZC","ZDROJE CELKEM","Kč",{"$f":"E51+E52","v":0},{"$f":"F51+F52","v":0},{"$f":"G51+G52","v":0},{"$f":"H51+H52","v":0},{"$f":"SUM(E53:H53)","v":0}]
[null,null,"Míra podpory","%",{"$f":"E50/E47","v":{"$error":"#DIV/0!"}},{"$f":"F50/F47","v":{"$error":"#DIV/0!"}},{"$f":"G50/G47","v":{"$error":"#DIV/0!"}},{"$f":"H50/H47","v":{"$error":"#DIV/0!"}},{"$f":"I50/I47","v":{"$error":"#DIV/0!"}}]
[null,null,null,null,null,null,null,null,null,null,null,null,null,null,null,null,null,null,null,null,null,null,null,null,null,null,null,null,null,null,null,null,null,null,null,null,null,null,null,null,null,null,null,null,null,null,null,null,null,null,null,0]
[]
[]
[]
[]
[]
["Vysvětlivky:"]
[]
["1 Rok rrrr - uveďte příslušný kalendářní rok řešení projektu"]
["A - Specifikujte počet osob,  jejich úvazky a mzdu/plat odpovídající úvazku výzkumného týmu; "]
["B - Uveďte druh investice, pořizovací cenu za ks, počet kusů, podíl využití, odpisovou skupinu"]
["C - Specifikujte druh služeb"]
["D - Další provozní náklady - specifikujte druh pořízeného nákladu, u drobného majetku uveďte pořizovací cenu"]
["D - Cestovní náhrady - konference, výstavy aj. v ČR a zahraničí"]
["D - Nepřímé náklady (režie) - zvolte metodu vykazování nepřímých nákladů (full cost, 20 %)"]
["E - Specifikujte subdodávky - dle potřeby přidejte řádky"]

{"sheet":"Další účastník 1","index":2,"n_rows":70,"n_cols":11,"rows_kept":70,"cut":false,"hidden":true,"merged":[[47,1,48,1],[47,2,48,2],[47,3,48,3],[47,4,47,7],[47,8,48,8],[21,1,21,3],[22,1,22,2],[22,3,22,8],[23,1,23,2],[23,3,23,8],[24,1,25,1],[24,2,25,2],[24,3,25,3],[24,4,24,7],[24,8,25,8]]}
[]
[]
[]
[null,null,"Náklady",{"$f":" E26& \" (v Kč)\"","v":" (v Kč)"},{"$f":" F26& \" (v Kč)\"","v":" (v Kč)"},{"$f":" G26& \" (v Kč)\"","v":" (v Kč)"},{"$f":" H26& \" (v Kč)\"","v":" (v Kč)"},"Celkem (v Kč)"]
[null,"A","Osobní náklady",{"$f":"E27","v":0},0,0,0,{"$f":"SUM(D5:G5)","v":0}]
[null,"B","Investiční náklady",0,0,0,0,{"$f":"SUM(D6:G6)","v":0}]
[null,"C","Služby",{"$f":"E31","v":0},0,0,0,{"$f":"SUM(D7:G7)","v":0}]
[null,"D","Ostatní náklady",0,0,0,0,{"$f":"SUM(D8:G8)","v":0}]
[null,"E","Subdodávky",{"$f":"E36","v":0},{"$f":"F36","v":0},{"$f":"G36","v":0},{"$f":"H36","v":0},{"$f":"SUM(D9:G9)","v":0}]
[null,null,"NÁKLADY CELKEM",{"$f":"SUM(D5,D6,D7,D8,D9)","v":0},{"$f":"SUM(E5,E6,E7,E8,E9)","v":0},{"$f":"SUM(F5,F6,F7,F8,F9)","v":0},{"$f":"SUM(G5,G6,G7,G8,G9)","v":0},{"$f":"SUM(H5,H6,H7,H8,H9)","v":0}]
[null,null,"Zdroje ",{"$f":"D4","v":" (v Kč)"},{"$f":"E4","v":" (v Kč)"},{"$f":"F4","v":" (v Kč)"},{"$f":"G4","v":" (v Kč)"},"Celkem (v Kč)"]
[null,"ZD","Podpora",{"$f":"E50","v":0},0,0,0,{"$f":"SUM(D12:G12)","v":0}]
[null,"ZDI","Z toho investiční podpora",0,0,0,0,{"$f":"SUM(D13:G13)","v":0}]
[null,"ZDN","Z toho neinvestiční podpora",0,0,0,0,{"$f":"SUM(D14:G14)","v":0}]
[null,"ZO","Ostatní veřejné zdroje",0,0,0,0,0]
[null,"ZN","Neveřejné zdroje",0,0,0,0,0]
[null,"ZC","ZDROJE CELKEM",{"$f":"SUM(D12)","v":0},{"$f":"SUM(E12)","v":0},{"$f":"SUM(F12)","v":0},{"$f":"SUM(G12)","v":0},{"$f":"SUM(D17:G17)","v":0}]
[null,null,"Míra podpory",{"$f":"IF(D10=0,0,D12/D10)","v":0},{"$f":"IF(E10=0,0,E12/E10)","v":0},{"$f":"IF(F10=0,0,F12/F10)","v":0},{"$f":"IF(G10=0,0,G12/G10)","v":0},{"$f":"IF(H10=0,0,H12/H10)","v":0}]
[]
[]
[]
[null,"Zvolená metoda vykazování nepřímých nákladů",null,null,"full cost",null,0.2]
[null,"Identifikační kód"]
[null,"Název uchazeče"]
[null,null,"Náklady","Jednotka","Rok1",null,null,null,"Celkem"]
[null,null,null,null,null,null,null,null,null,"Popis"]
[null,"A","Osobní náklady","Kč",null,null,null,null,{"$f":"SUM(E27:H27)","v":0},null,"Osobní náklady"]
[null,"B","Investiční náklady","Kč",{"$f":"E29+E30","v":0},{"$f":"F29+F30","v":0},{"$f":"G29+G30","v":0},{"$f":"H29+H30","v":0},0,null,"Investiční náklady"]
[null,null,"Dlouhodobý hmotný majetek","Kč",null,null,null,null,0,null,"Dlouhodobý hmotný majetek"]
[null,null,"Dlouhodobý nehmotný majetek","Kč",null,null,null,null,0,null,"Dlouhodobý nehmotný majetek"]
[null,"C","Služby","Kč",null,null,null,null,0,null,"Služby"]
[null,"D","Ostatní náklady","Kč",{"$f":"E33+E34+E35","v":0},{"$f":"F33+F34+F35","v":0},{"$f":"G33+G34+G35","v":0},{"$f":"H33+H34+H35","v":0},0,null,"Ostatní náklady"]
[null,null,"Další provozní náklady","Kč",null,null,null,null,0,null,"Další provozní náklady"]
[null,null,"Cestovní náhrady","Kč",null,null,null,null,0,null,"Cestovní náhrady"]
[null,null,"Nepřímé náklady (režie)","Kč",null,null,null,null,0,null,"Nepřímé náklady (režie)"]
[null,"E","Subdodávky","Kč",{"$f":"SUM(E37:E46)","v":0},{"$f":"SUM(F37:F46)","v":0},{"$f":"SUM(G37:G46)","v":0},{"$f":"SUM(H37:H46)","v":0},0,null,"Subdodávky"]
[null,null,"Subdodavatel 1","Kč",null,null,null,null,0,null,"Subdodavatel 1"]
[null,null,"Subdodavatel 2","Kč",null,null,null,null,{"$f":"SUM(E38:H38)","v":0},null,"Subdodavatel 2"]
[null,null,"Subdodavatel 3","Kč",null,null,null,null,0,null,"Subdodavatel 3"]
[null,null,"Subdodavatel 4","Kč",null,null,null,null,0,null,"Subdodavatel 4"]
[null,null,"Subdodavatel 5","Kč",null,null,null,null,0,null,"Subdodavatel 5"]
[null,null,"Subdodavatel 6","Kč",null,null,null,null,0,null,"Subdodavatel 6"]
[null,null,"Subdodavatel 7","Kč",null,null,null,null,0,null,"Subdodavatel 7"]
[null,null,"Subdodavatel 8","Kč",null,null,null,null,0,null,"Subdodavatel 8"]
[null,null,"Subdodavatel 9","Kč",null,null,null,null,0,null,"Subdodavatel 9"]
[null,null,"Subdodavatel 10","Kč",null,null,null,null,0,null,"Subdodavatel 10"]
[null,null,"NÁKLADY CELKEM","Kč",{"$f":"SUM(E27,E28,E31,E32,E36)","v":0},{"$f":"SUM(F27,F28,F31,F32,F36)","v":0},{"$f":"SUM(G27,G28,G31,G32,G36)","v":0},{"$f":"SUM(H27,H28,H31,H32,H36)","v":0},{"$f":"SUM(I27,I28,I31,I32,I36)","v":0}]
[null,null,"Zdroje ","Jednotka","Rok ",null,null,null,"Celkem"]
[null,null,null,null,{"$f":"E26","v":0},{"$f":"F26","v":0},{"$f":"G26","v":0},{"$f":"H26","v":0}]
[null,"ZD","Podpora","Kč",{"$f":"E47","v":0},{"$f":"F47","v":0},{"$f":"G47","v":0},{"$f":"H47","v":0},{"$f":"SUM(E50:H50)","v":0}]
[null,"ZDI","Z toho investiční podpora","Kč",{"$f":"E28","v":0},{"$f":"F28","v":0},{"$f":"G28","v":0},{"$f":"H28","v":0},{"$f":"SUM(E51:H51)","v":0}]
[null,"ZDN","Z toho neinvestiční podpora","Kč",{"$f":"E27+E31+E32+E36","v":0},{"$f":"F27+F31+F32+F36","v":0},{"$f":"G27+G31+G32+G36","v":0},{"$f":"H27+H31+H32+H36","v":0},{"$f":"SUM(E52:H52)","v":0}]
[null,"ZC","ZDROJE CELKEM","Kč",{"$f":"E51+E52","v":0},{"$f":"F51+F52","v":0},{"$f":"G51+G52","v":0},{"$f":"H51+H52","v":0},{"$f":"SUM(E53:H53)","v":0}]
[null,null,"Míra podpory","%",{"$f":"E50/E47","v":{"$error":"#DIV/0!"}},{"$f":"F50/F47","v":{"$error":"#DIV/0!"}},{"$f":"G50/G47","v":{"$error":"#DIV/0!"}},{"$f":"H50/H47","v":{"$error":"#DIV/0!"}},{"$f":"I50/I47","v":{"$error":"#DIV/0!"}}]
[]
[]
[]
[]
[]
[]
["Vysvětlivky:"]
[]
["1 Rok rrrr - uveďte příslušný kalendářní rok řešení projektu"]
["A - Specifikujte počet osob,  jejich úvazky a mzdu/plat odpovídající úvazku výzkumného týmu; "]
["B - Uveďte druh investice, pořizovací cenu za ks, počet kusů, podíl využití, odpisovou skupinu"]
["C - Specifikujte druh služeb"]
["D - Další provozní náklady - specifikujte druh pořízeného nákladu, u drobného majetku uveďte pořizovací cenu"]
["D - Cestovní náhrady - konference, výstavy aj. v ČR a zahraničí"]
["D - Nepřímé náklady (režie) - zvolte metodu vykazování nepřímých nákladů (full cost, 20 %)"]
["E - Specifikujte subdodávky - dle potřeby přidejte řádky"]

{"sheet":"Další účastník 2","index":3,"n_rows":70,"n_cols":11,"rows_kept":70,"cut":false,"hidden":true,"merged":[[47,1,48,1],[47,2,48,2],[47,3,48,3],[47,4,47,7],[47,8,48,8],[21,1,21,3],[22,1,22,2],[22,3,22,8],[23,1,23,2],[23,3,23,8],[24,1,25,1],[24,2,25,2],[24,3,25,3],[24,4,24,7],[24,8,25,8]]}
[]
[]
[]
[null,null,"Náklady",{"$f":" E26& \" (v Kč)\"","v":" (v Kč)"},{"$f":" F26& \" (v Kč)\"","v":" (v Kč)"},{"$f":" G26& \" (v Kč)\"","v":" (v Kč)"},{"$f":" H26& \" (v Kč)\"","v":" (v Kč)"},"Celkem (v Kč)"]
[null,"A","Osobní náklady",{"$f":"E27","v":0},0,0,0,{"$f":"SUM(D5:G5)","v":0}]
[null,"B","Investiční náklady",0,0,0,0,{"$f":"SUM(D6:G6)","v":0}]
[null,"C","Služby",{"$f":"E31","v":0},0,0,0,{"$f":"SUM(D7:G7)","v":0}]
[null,"D","Ostatní náklady",0,0,0,0,{"$f":"SUM(D8:G8)","v":0}]
[null,"E","Subdodávky",{"$f":"E36","v":0},{"$f":"F36","v":0},{"$f":"G36","v":0},{"$f":"H36","v":0},{"$f":"SUM(D9:G9)","v":0}]
[null,null,"NÁKLADY CELKEM",{"$f":"SUM(D5,D6,D7,D8,D9)","v":0},{"$f":"SUM(E5,E6,E7,E8,E9)","v":0},{"$f":"SUM(F5,F6,F7,F8,F9)","v":0},{"$f":"SUM(G5,G6,G7,G8,G9)","v":0},{"$f":"SUM(H5,H6,H7,H8,H9)","v":0}]
[null,null,"Zdroje ",{"$f":"D4","v":" (v Kč)"},{"$f":"E4","v":" (v Kč)"},{"$f":"F4","v":" (v Kč)"},{"$f":"G4","v":" (v Kč)"},"Celkem (v Kč)"]
[null,"ZD","Podpora",{"$f":"E50","v":0},0,0,0,{"$f":"SUM(D12:G12)","v":0}]
[null,"ZDI","Z toho investiční podpora",0,0,0,0,{"$f":"SUM(D13:G13)","v":0}]
[null,"ZDN","Z toho neinvestiční podpora",0,0,0,0,{"$f":"SUM(D14:G14)","v":0}]
[null,"ZO","Ostatní veřejné zdroje",0,0,0,0,0]
[null,"ZN","Neveřejné zdroje",0,0,0,0,0]
[null,"ZC","ZDROJE CELKEM",{"$f":"SUM(D12)","v":0},{"$f":"SUM(E12)","v":0},{"$f":"SUM(F12)","v":0},{"$f":"SUM(G12)","v":0},{"$f":"SUM(D17:G17)","v":0}]
[null,null,"Míra podpory",{"$f":"IF(D10=0,0,D12/D10)","v":0},{"$f":"IF(E10=0,0,E12/E10)","v":0},{"$f":"IF(F10=0,0,F12/F10)","v":0},{"$f":"IF(G10=0,0,G12/G10)","v":0},{"$f":"IF(H10=0,0,H12/H10)","v":0}]
[]
[]
[]
[null,"Zvolená metoda vykazování nepřímých nákladů",null,null,"full cost",null,0.2]
[null,"Identifikační kód"]
[null,"Název uchazeče"]
[null,null,"Náklady","Jednotka","Rok1",null,null,null,"Celkem"]
[null,null,null,null,null,null,null,null,null,"Popis"]
[null,"A","Osobní náklady","Kč",null,null,null,null,{"$f":"SUM(E27:H27)","v":0},null,"Osobní náklady"]
[null,"B","Investiční náklady","Kč",{"$f":"E29+E30","v":0},{"$f":"F29+F30","v":0},{"$f":"G29+G30","v":0},{"$f":"H29+H30","v":0},0,null,"Investiční náklady"]
[null,null,"Dlouhodobý hmotný majetek","Kč",null,null,null,null,0,null,"Dlouhodobý hmotný majetek"]
[null,null,"Dlouhodobý nehmotný majetek","Kč",null,null,null,null,0,null,"Dlouhodobý nehmotný majetek"]
[null,"C","Služby","Kč",null,null,null,null,0,null,"Služby"]
[null,"D","Ostatní náklady","Kč",{"$f":"E33+E34+E35","v":0},{"$f":"F33+F34+F35","v":0},{"$f":"G33+G34+G35","v":0},{"$f":"H33+H34+H35","v":0},0,null,"Ostatní náklady"]
[null,null,"Další provozní náklady","Kč",null,null,null,null,0,null,"Další provozní náklady"]
[null,null,"Cestovní náhrady","Kč",null,null,null,null,0,null,"Cestovní náhrady"]
[null,null,"Nepřímé náklady (režie)","Kč",null,null,null,null,0,null,"Nepřímé náklady (režie)"]
[null,"E","Subdodávky","Kč",{"$f":"SUM(E37:E46)","v":0},{"$f":"SUM(F37:F46)","v":0},{"$f":"SUM(G37:G46)","v":0},{"$f":"SUM(H37:H46)","v":0},0,null,"Subdodávky"]
[null,null,"Subdodavatel 1","Kč",null,null,null,null,0,null,"Subdodavatel 1"]
[null,null,"Subdodavatel 2","Kč",null,null,null,null,{"$f":"SUM(E38:H38)","v":0},null,"Subdodavatel 2"]
[null,null,"Subdodavatel 3","Kč",null,null,null,null,0,null,"Subdodavatel 3"]
[null,null,"Subdodavatel 4","Kč",null,null,null,null,0,null,"Subdodavatel 4"]
[null,null,"Subdodavatel 5","Kč",null,null,null,null,0,null,"Subdodavatel 5"]
[null,null,"Subdodavatel 6","Kč",null,null,null,null,0,null,"Subdodavatel 6"]
[null,null,"Subdodavatel 7","Kč",null,null,null,null,0,null,"Subdodavatel 7"]
[null,null,"Subdodavatel 8","Kč",null,null,null,null,0,null,"Subdodavatel 8"]
[null,null,"Subdodavatel 9","Kč",null,null,null,null,0,null,"Subdodavatel 9"]
[null,null,"Subdodavatel 10","Kč",null,null,null,null,0,null,"Subdodavatel 10"]
[null,null,"NÁKLADY CELKEM","Kč",{"$f":"SUM(E27,E28,E31,E32,E36)","v":0},{"$f":"SUM(F27,F28,F31,F32,F36)","v":0},{"$f":"SUM(G27,G28,G31,G32,G36)","v":0},{"$f":"SUM(H27,H28,H31,H32,H36)","v":0},{"$f":"SUM(I27,I28,I31,I32,I36)","v":0}]
[null,null,"Zdroje ","Jednotka","Rok ",null,null,null,"Celkem"]
[null,null,null,null,{"$f":"E26","v":0},{"$f":"F26","v":0},{"$f":"G26","v":0},{"$f":"H26","v":0}]
[null,"ZD","Podpora","Kč",{"$f":"E47","v":0},{"$f":"F47","v":0},{"$f":"G47","v":0},{"$f":"H47","v":0},{"$f":"SUM(E50:H50)","v":0}]
[null,"ZDI","Z toho investiční podpora","Kč",{"$f":"E28","v":0},{"$f":"F28","v":0},{"$f":"G28","v":0},{"$f":"H28","v":0},{"$f":"SUM(E51:H51)","v":0}]
[null,"ZDN","Z toho neinvestiční podpora","Kč",{"$f":"E27+E31+E32+E36","v":0},{"$f":"F27+F31+F32+F36","v":0},{"$f":"G27+G31+G32+G36","v":0},{"$f":"H27+H31+H32+H36","v":0},{"$f":"SUM(E52:H52)","v":0}]
[null,"ZC","ZDROJE CELKEM","Kč",{"$f":"E51+E52","v":0},{"$f":"F51+F52","v":0},{"$f":"G51+G52","v":0},{"$f":"H51+H52","v":0},{"$f":"SUM(E53:H53)","v":0}]
[null,null,"Míra podpory","%",{"$f":"E50/E47","v":{"$error":"#DIV/0!"}},{"$f":"F50/F47","v":{"$error":"#DIV/0!"}},{"$f":"G50/G47","v":{"$error":"#DIV/0!"}},{"$f":"H50/H47","v":{"$error":"#DIV/0!"}},{"$f":"I50/I47","v":{"$error":"#DIV/0!"}}]
[]
[]
[]
[]
[]
[]
["Vysvětlivky:"]
[]
["1 Rok rrrr - uveďte příslušný kalendářní rok řešení projektu"]
["A - Specifikujte počet osob,  jejich úvazky a mzdu/plat odpovídající úvazku výzkumného týmu; "]
["B - Uveďte druh investice, pořizovací cenu za ks, počet kusů, podíl využití, odpisovou skupinu"]
["C - Specifikujte druh služeb"]
["D - Další provozní náklady - specifikujte druh pořízeného nákladu, u drobného majetku uveďte pořizovací cenu"]
["D - Cestovní náhrady - konference, výstavy aj. v ČR a zahraničí"]
["D - Nepřímé náklady (režie) - zvolte metodu vykazování nepřímých nákladů (full cost, 20 %)"]
["E - Specifikujte subdodávky - dle potřeby přidejte řádky"]

{"sheet":"Další účastník 3","index":4,"n_rows":70,"n_cols":11,"rows_kept":70,"cut":false,"hidden":true,"merged":[[47,1,48,1],[47,2,48,2],[47,3,48,3],[47,4,47,7],[47,8,48,8],[21,1,21,3],[22,1,22,2],[22,3,22,8],[23,1,23,2],[23,3,23,8],[24,1,25,1],[24,2,25,2],[24,3,25,3],[24,4,24,7],[24,8,25,8]]}
[]
[]
[]
[null,null,"Náklady",{"$f":" E26& \" (v Kč)\"","v":" (v Kč)"},{"$f":" F26& \" (v Kč)\"","v":" (v Kč)"},{"$f":" G26& \" (v Kč)\"","v":" (v Kč)"},{"$f":" H26& \" (v Kč)\"","v":" (v Kč)"},"Celkem (v Kč)"]
[null,"A","Osobní náklady",{"$f":"E27","v":0},0,0,0,{"$f":"SUM(D5:G5)","v":0}]
[null,"B","Investiční náklady",0,0,0,0,{"$f":"SUM(D6:G6)","v":0}]
[null,"C","Služby",{"$f":"E31","v":0},0,0,0,{"$f":"SUM(D7:G7)","v":0}]
[null,"D","Ostatní náklady",0,0,0,0,{"$f":"SUM(D8:G8)","v":0}]
[null,"E","Subdodávky",{"$f":"E36","v":0},{"$f":"F36","v":0},{"$f":"G36","v":0},{"$f":"H36","v":0},{"$f":"SUM(D9:G9)","v":0}]
[null,null,"NÁKLADY CELKEM",{"$f":"SUM(D5,D6,D7,D8,D9)","v":0},{"$f":"SUM(E5,E6,E7,E8,E9)","v":0},{"$f":"SUM(F5,F6,F7,F8,F9)","v":0},{"$f":"SUM(G5,G6,G7,G8,G9)","v":0},{"$f":"SUM(H5,H6,H7,H8,H9)","v":0}]
[null,null,"Zdroje ",{"$f":"D4","v":" (v Kč)"},{"$f":"E4","v":" (v Kč)"},{"$f":"F4","v":" (v Kč)"},{"$f":"G4","v":" (v Kč)"},"Celkem (v Kč)"]
[null,"ZD","Podpora",{"$f":"E50","v":0},0,0,0,{"$f":"SUM(D12:G12)","v":0}]
[null,"ZDI","Z toho investiční podpora",0,0,0,0,{"$f":"SUM(D13:G13)","v":0}]
[null,"ZDN","Z toho neinvestiční podpora",0,0,0,0,{"$f":"SUM(D14:G14)","v":0}]
[null,"ZO","Ostatní veřejné zdroje",0,0,0,0,0]
[null,"ZN","Neveřejné zdroje",0,0,0,0,0]
[null,"ZC","ZDROJE CELKEM",{"$f":"SUM(D12)","v":0},{"$f":"SUM(E12)","v":0},{"$f":"SUM(F12)","v":0},{"$f":"SUM(G12)","v":0},{"$f":"SUM(D17:G17)","v":0}]
[null,null,"Míra podpory",{"$f":"IF(D10=0,0,D12/D10)","v":0},{"$f":"IF(E10=0,0,E12/E10)","v":0},{"$f":"IF(F10=0,0,F12/F10)","v":0},{"$f":"IF(G10=0,0,G12/G10)","v":0},{"$f":"IF(H10=0,0,H12/H10)","v":0}]
[]
[]
[]
[null,"Zvolená metoda vykazování nepřímých nákladů",null,null,"full cost",null,0.2]
[null,"Identifikační kód"]
[null,"Název uchazeče"]
[null,null,"Náklady","Jednotka","Rok1",null,null,null,"Celkem"]
[null,null,null,null,null,null,null,null,null,"Popis"]
[null,"A","Osobní náklady","Kč",null,null,null,null,{"$f":"SUM(E27:H27)","v":0},null,"Osobní náklady"]
[null,"B","Investiční náklady","Kč",{"$f":"E29+E30","v":0},{"$f":"F29+F30","v":0},{"$f":"G29+G30","v":0},{"$f":"H29+H30","v":0},0,null,"Investiční náklady"]
[null,null,"Dlouhodobý hmotný majetek","Kč",null,null,null,null,0,null,"Dlouhodobý hmotný majetek"]
[null,null,"Dlouhodobý nehmotný majetek","Kč",null,null,null,null,0,null,"Dlouhodobý nehmotný majetek"]
[null,"C","Služby","Kč",null,null,null,null,0,null,"Služby"]
[null,"D","Ostatní náklady","Kč",{"$f":"E33+E34+E35","v":0},{"$f":"F33+F34+F35","v":0},{"$f":"G33+G34+G35","v":0},{"$f":"H33+H34+H35","v":0},0,null,"Ostatní náklady"]
[null,null,"Další provozní náklady","Kč",null,null,null,null,0,null,"Další provozní náklady"]
[null,null,"Cestovní náhrady","Kč",null,null,null,null,0,null,"Cestovní náhrady"]
[null,null,"Nepřímé náklady (režie)","Kč",null,null,null,null,0,null,"Nepřímé náklady (režie)"]
[null,"E","Subdodávky","Kč",{"$f":"SUM(E37:E46)","v":0},{"$f":"SUM(F37:F46)","v":0},{"$f":"SUM(G37:G46)","v":0},{"$f":"SUM(H37:H46)","v":0},0,null,"Subdodávky"]
[null,null,"Subdodavatel 1","Kč",null,null,null,null,0,null,"Subdodavatel 1"]
[null,null,"Subdodavatel 2","Kč",null,null,null,null,{"$f":"SUM(E38:H38)","v":0},null,"Subdodavatel 2"]
[null,null,"Subdodavatel 3","Kč",null,null,null,null,0,null,"Subdodavatel 3"]
[null,null,"Subdodavatel 4","Kč",null,null,null,null,0,null,"Subdodavatel 4"]
[null,null,"Subdodavatel 5","Kč",null,null,null,null,0,null,"Subdodavatel 5"]
[null,null,"Subdodavatel 6","Kč",null,null,null,null,0,null,"Subdodavatel 6"]
[null,null,"Subdodavatel 7","Kč",null,null,null,null,0,null,"Subdodavatel 7"]
[null,null,"Subdodavatel 8","Kč",null,null,null,null,0,null,"Subdodavatel 8"]
[null,null,"Subdodavatel 9","Kč",null,null,null,null,0,null,"Subdodavatel 9"]
[null,null,"Subdodavatel 10","Kč",null,null,null,null,0,null,"Subdodavatel 10"]
[null,null,"NÁKLADY CELKEM","Kč",{"$f":"SUM(E27,E28,E31,E32,E36)","v":0},{"$f":"SUM(F27,F28,F31,F32,F36)","v":0},{"$f":"SUM(G27,G28,G31,G32,G36)","v":0},{"$f":"SUM(H27,H28,H31,H32,H36)","v":0},{"$f":"SUM(I27,I28,I31,I32,I36)","v":0}]
[null,null,"Zdroje ","Jednotka","Rok ",null,null,null,"Celkem"]
[null,null,null,null,{"$f":"E26","v":0},{"$f":"F26","v":0},{"$f":"G26","v":0},{"$f":"H26","v":0}]
[null,"ZD","Podpora","Kč",{"$f":"E47","v":0},{"$f":"F47","v":0},{"$f":"G47","v":0},{"$f":"H47","v":0},{"$f":"SUM(E50:H50)","v":0}]
[null,"ZDI","Z toho investiční podpora","Kč",{"$f":"E28","v":0},{"$f":"F28","v":0},{"$f":"G28","v":0},{"$f":"H28","v":0},{"$f":"SUM(E51:H51)","v":0}]
[null,"ZDN","Z toho neinvestiční podpora","Kč",{"$f":"E27+E31+E32+E36","v":0},{"$f":"F27+F31+F32+F36","v":0},{"$f":"G27+G31+G32+G36","v":0},{"$f":"H27+H31+H32+H36","v":0},{"$f":"SUM(E52:H52)","v":0}]
[null,"ZC","ZDROJE CELKEM","Kč",{"$f":"E51+E52","v":0},{"$f":"F51+F52","v":0},{"$f":"G51+G52","v":0},{"$f":"H51+H52","v":0},{"$f":"SUM(E53:H53)","v":0}]
[null,null,"Míra podpory","%",{"$f":"E50/E47","v":{"$error":"#DIV/0!"}},{"$f":"F50/F47","v":{"$error":"#DIV/0!"}},{"$f":"G50/G47","v":{"$error":"#DIV/0!"}},{"$f":"H50/H47","v":{"$error":"#DIV/0!"}},{"$f":"I50/I47","v":{"$error":"#DIV/0!"}}]
[]
[]
[]
[]
[]
[]
["Vysvětlivky:"]
[]
["1 Rok rrrr - uveďte příslušný kalendářní rok řešení projektu"]
["A - Specifikujte počet osob,  jejich úvazky a mzdu/plat odpovídající úvazku výzkumného týmu; "]
["B - Uveďte druh investice, pořizovací cenu za ks, počet kusů, podíl využití, odpisovou skupinu"]
["C - Specifikujte druh služeb"]
["D - Další provozní náklady - specifikujte druh pořízeného nákladu, u drobného majetku uveďte pořizovací cenu"]
["D - Cestovní náhrady - konference, výstavy aj. v ČR a zahraničí"]
["D - Nepřímé náklady (režie) - zvolte metodu vykazování nepřímých nákladů (full cost, 20 %)"]
["E - Specifikujte subdodávky - dle potřeby přidejte řádky"]

{"sheet":"Další účastník 4","index":5,"n_rows":70,"n_cols":11,"rows_kept":70,"cut":false,"hidden":true,"merged":[[47,1,48,1],[47,2,48,2],[47,3,48,3],[47,4,47,7],[47,8,48,8],[21,1,21,3],[22,1,22,2],[22,3,22,8],[23,1,23,2],[23,3,23,8],[24,1,25,1],[24,2,25,2],[24,3,25,3],[24,4,24,7],[24,8,25,8]]}
[]
[]
[]
[null,null,"Náklady",{"$f":" E26& \" (v Kč)\"","v":" (v Kč)"},{"$f":" F26& \" (v Kč)\"","v":" (v Kč)"},{"$f":" G26& \" (v Kč)\"","v":" (v Kč)"},{"$f":" H26& \" (v Kč)\"","v":" (v Kč)"},"Celkem (v Kč)"]
[null,"A","Osobní náklady",{"$f":"E27","v":0},0,0,0,{"$f":"SUM(D5:G5)","v":0}]
[null,"B","Investiční náklady",0,0,0,0,{"$f":"SUM(D6:G6)","v":0}]
[null,"C","Služby",{"$f":"E31","v":0},0,0,0,{"$f":"SUM(D7:G7)","v":0}]
[null,"D","Ostatní náklady",0,0,0,0,{"$f":"SUM(D8:G8)","v":0}]
[null,"E","Subdodávky",{"$f":"E36","v":0},{"$f":"F36","v":0},{"$f":"G36","v":0},{"$f":"H36","v":0},{"$f":"SUM(D9:G9)","v":0}]
[null,null,"NÁKLADY CELKEM",{"$f":"SUM(D5,D6,D7,D8,D9)","v":0},{"$f":"SUM(E5,E6,E7,E8,E9)","v":0},{"$f":"SUM(F5,F6,F7,F8,F9)","v":0},{"$f":"SUM(G5,G6,G7,G8,G9)","v":0},{"$f":"SUM(H5,H6,H7,H8,H9)","v":0}]
[null,null,"Zdroje ",{"$f":"D4","v":" (v Kč)"},{"$f":"E4","v":" (v Kč)"},{"$f":"F4","v":" (v Kč)"},{"$f":"G4","v":" (v Kč)"},"Celkem (v Kč)"]
[null,"ZD","Podpora",{"$f":"E50","v":0},0,0,0,{"$f":"SUM(D12:G12)","v":0}]
[null,"ZDI","Z toho investiční podpora",0,0,0,0,{"$f":"SUM(D13:G13)","v":0}]
[null,"ZDN","Z toho neinvestiční podpora",0,0,0,0,{"$f":"SUM(D14:G14)","v":0}]
[null,"ZO","Ostatní veřejné zdroje",0,0,0,0,0]
[null,"ZN","Neveřejné zdroje",0,0,0,0,0]
[null,"ZC","ZDROJE CELKEM",{"$f":"SUM(D12)","v":0},{"$f":"SUM(E12)","v":0},{"$f":"SUM(F12)","v":0},{"$f":"SUM(G12)","v":0},{"$f":"SUM(D17:G17)","v":0}]
[null,null,"Míra podpory",{"$f":"IF(D10=0,0,D12/D10)","v":0},{"$f":"IF(E10=0,0,E12/E10)","v":0},{"$f":"IF(F10=0,0,F12/F10)","v":0},{"$f":"IF(G10=0,0,G12/G10)","v":0},{"$f":"IF(H10=0,0,H12/H10)","v":0}]
[]
[]
[]
[null,"Zvolená metoda vykazování nepřímých nákladů",null,null,"full cost",null,0.2]
[null,"Identifikační kód"]
[null,"Název uchazeče"]
[null,null,"Náklady","Jednotka","Rok1",null,null,null,"Celkem"]
[null,null,null,null,null,null,null,null,null,"Popis"]
[null,"A","Osobní náklady","Kč",null,null,null,null,{"$f":"SUM(E27:H27)","v":0},null,"Osobní náklady"]
[null,"B","Investiční náklady","Kč",{"$f":"E29+E30","v":0},{"$f":"F29+F30","v":0},{"$f":"G29+G30","v":0},{"$f":"H29+H30","v":0},0,null,"Investiční náklady"]
[null,null,"Dlouhodobý hmotný majetek","Kč",null,null,null,null,0,null,"Dlouhodobý hmotný majetek"]
[null,null,"Dlouhodobý nehmotný majetek","Kč",null,null,null,null,0,null,"Dlouhodobý nehmotný majetek"]
[null,"C","Služby","Kč",null,null,null,null,0,null,"Služby"]
[null,"D","Ostatní náklady","Kč",{"$f":"E33+E34+E35","v":0},{"$f":"F33+F34+F35","v":0},{"$f":"G33+G34+G35","v":0},{"$f":"H33+H34+H35","v":0},0,null,"Ostatní náklady"]
[null,null,"Další provozní náklady","Kč",null,null,null,null,0,null,"Další provozní náklady"]
[null,null,"Cestovní náhrady","Kč",null,null,null,null,0,null,"Cestovní náhrady"]
[null,null,"Nepřímé náklady (režie)","Kč",null,null,null,null,0,null,"Nepřímé náklady (režie)"]
[null,"E","Subdodávky","Kč",{"$f":"SUM(E37:E46)","v":0},{"$f":"SUM(F37:F46)","v":0},{"$f":"SUM(G37:G46)","v":0},{"$f":"SUM(H37:H46)","v":0},0,null,"Subdodávky"]
[null,null,"Subdodavatel 1","Kč",null,null,null,null,0,null,"Subdodavatel 1"]
[null,null,"Subdodavatel 2","Kč",null,null,null,null,{"$f":"SUM(E38:H38)","v":0},null,"Subdodavatel 2"]
[null,null,"Subdodavatel 3","Kč",null,null,null,null,0,null,"Subdodavatel 3"]
[null,null,"Subdodavatel 4","Kč",null,null,null,null,0,null,"Subdodavatel 4"]
[null,null,"Subdodavatel 5","Kč",null,null,null,null,0,null,"Subdodavatel 5"]
[null,null,"Subdodavatel 6","Kč",null,null,null,null,0,null,"Subdodavatel 6"]
[null,null,"Subdodavatel 7","Kč",null,null,null,null,0,null,"Subdodavatel 7"]
[null,null,"Subdodavatel 8","Kč",null,null,null,null,0,null,"Subdodavatel 8"]
[null,null,"Subdodavatel 9","Kč",null,null,null,null,0,null,"Subdodavatel 9"]
[null,null,"Subdodavatel 10","Kč",null,null,null,null,0,null,"Subdodavatel 10"]
[null,null,"NÁKLADY CELKEM","Kč",{"$f":"SUM(E27,E28,E31,E32,E36)","v":0},{"$f":"SUM(F27,F28,F31,F32,F36)","v":0},{"$f":"SUM(G27,G28,G31,G32,G36)","v":0},{"$f":"SUM(H27,H28,H31,H32,H36)","v":0},{"$f":"SUM(I27,I28,I31,I32,I36)","v":0}]
[null,null,"Zdroje ","Jednotka","Rok ",null,null,null,"Celkem"]
[null,null,null,null,{"$f":"E26","v":0},{"$f":"F26","v":0},{"$f":"G26","v":0},{"$f":"H26","v":0}]
[null,"ZD","Podpora","Kč",{"$f":"E47","v":0},{"$f":"F47","v":0},{"$f":"G47","v":0},{"$f":"H47","v":0},{"$f":"SUM(E50:H50)","v":0}]
[null,"ZDI","Z toho investiční podpora","Kč",{"$f":"E28","v":0},{"$f":"F28","v":0},{"$f":"G28","v":0},{"$f":"H28","v":0},{"$f":"SUM(E51:H51)","v":0}]
[null,"ZDN","Z toho neinvestiční podpora","Kč",{"$f":"E27+E31+E32+E36","v":0},{"$f":"F27+F31+F32+F36","v":0},{"$f":"G27+G31+G32+G36","v":0},{"$f":"H27+H31+H32+H36","v":0},{"$f":"SUM(E52:H52)","v":0}]
[null,"ZC","ZDROJE CELKEM","Kč",{"$f":"E51+E52","v":0},{"$f":"F51+F52","v":0},{"$f":"G51+G52","v":0},{"$f":"H51+H52","v":0},{"$f":"SUM(E53:H53)","v":0}]
[null,null,"Míra podpory","%",{"$f":"E50/E47","v":{"$error":"#DIV/0!"}},{"$f":"F50/F47","v":{"$error":"#DIV/0!"}},{"$f":"G50/G47","v":{"$error":"#DIV/0!"}},{"$f":"H50/H47","v":{"$error":"#DIV/0!"}},{"$f":"I50/I47","v":{"$error":"#DIV/0!"}}]
[]
[]
[]
[]
[]
[]
["Vysvětlivky:"]
[]
["1 Rok rrrr - uveďte příslušný kalendářní rok řešení projektu"]
["A - Specifikujte počet osob,  jejich úvazky a mzdu/plat odpovídající úvazku výzkumného týmu; "]
["B - Uveďte druh investice, pořizovací cenu za ks, počet kusů, podíl využití, odpisovou skupinu"]
["C - Specifikujte druh služeb"]
["D - Další provozní náklady - specifikujte druh pořízeného nákladu, u drobného majetku uveďte pořizovací cenu"]
["D - Cestovní náhrady - konference, výstavy aj. v ČR a zahraničí"]
["D - Nepřímé náklady (režie) - zvolte metodu vykazování nepřímých nákladů (full cost, 20 %)"]
["E - Specifikujte subdodávky - dle potřeby přidejte řádky"]

{"sheet":"Další účastník 5","index":6,"n_rows":70,"n_cols":11,"rows_kept":70,"cut":false,"hidden":true,"merged":[[47,1,48,1],[47,2,48,2],[47,3,48,3],[47,4,47,7],[47,8,48,8],[21,1,21,3],[22,1,22,2],[22,3,22,8],[23,1,23,2],[23,3,23,8],[24,1,25,1],[24,2,25,2],[24,3,25,3],[24,4,24,7],[24,8,25,8]]}
[]
[]
[]
[null,null,"Náklady",{"$f":" E26& \" (v Kč)\"","v":" (v Kč)"},{"$f":" F26& \" (v Kč)\"","v":" (v Kč)"},{"$f":" G26& \" (v Kč)\"","v":" (v Kč)"},{"$f":" H26& \" (v Kč)\"","v":" (v Kč)"},"Celkem (v Kč)"]
[null,"A","Osobní náklady",{"$f":"E27","v":0},0,0,0,{"$f":"SUM(D5:G5)","v":0}]
[null,"B","Investiční náklady",0,0,0,0,{"$f":"SUM(D6:G6)","v":0}]
[null,"C","Služby",{"$f":"E31","v":0},0,0,0,{"$f":"SUM(D7:G7)","v":0}]
[null,"D","Ostatní náklady",0,0,0,0,{"$f":"SUM(D8:G8)","v":0}]
[null,"E","Subdodávky",{"$f":"E36","v":0},{"$f":"F36","v":0},{"$f":"G36","v":0},{"$f":"H36","v":0},{"$f":"SUM(D9:G9)","v":0}]
[null,null,"NÁKLADY CELKEM",{"$f":"SUM(D5,D6,D7,D8,D9)","v":0},{"$f":"SUM(E5,E6,E7,E8,E9)","v":0},{"$f":"SUM(F5,F6,F7,F8,F9)","v":0},{"$f":"SUM(G5,G6,G7,G8,G9)","v":0},{"$f":"SUM(H5,H6,H7,H8,H9)","v":0}]
[null,null,"Zdroje ",{"$f":"D4","v":" (v Kč)"},{"$f":"E4","v":" (v Kč)"},{"$f":"F4","v":" (v Kč)"},{"$f":"G4","v":" (v Kč)"},"Celkem (v Kč)"]
[null,"ZD","Podpora",{"$f":"E50","v":0},0,0,0,{"$f":"SUM(D12:G12)","v":0}]
[null,"ZDI","Z toho investiční podpora",0,0,0,0,{"$f":"SUM(D13:G13)","v":0}]
[null,"ZDN","Z toho neinvestiční podpora",0,0,0,0,{"$f":"SUM(D14:G14)","v":0}]
[null,"ZO","Ostatní veřejné zdroje",0,0,0,0,0]
[null,"ZN","Neveřejné zdroje",0,0,0,0,0]
[null,"ZC","ZDROJE CELKEM",{"$f":"SUM(D12)","v":0},{"$f":"SUM(E12)","v":0},{"$f":"SUM(F12)","v":0},{"$f":"SUM(G12)","v":0},{"$f":"SUM(D17:G17)","v":0}]
[null,null,"Míra podpory",{"$f":"IF(D10=0,0,D12/D10)","v":0},{"$f":"IF(E10=0,0,E12/E10)","v":0},{"$f":"IF(F10=0,0,F12/F10)","v":0},{"$f":"IF(G10=0,0,G12/G10)","v":0},{"$f":"IF(H10=0,0,H12/H10)","v":0}]
[]
[]
[]
[null,"Zvolená metoda vykazování nepřímých nákladů",null,null,"full cost",null,0.2]
[null,"Identifikační kód"]
[null,"Název uchazeče"]
[null,null,"Náklady","Jednotka","Rok1",null,null,null,"Celkem"]
[null,null,null,null,null,null,null,null,null,"Popis"]
[null,"A","Osobní náklady","Kč",0,null,null,null,{"$f":"SUM(E27:H27)","v":0}," ","Osobní náklady"]
[null,"B","Investiční náklady","Kč",{"$f":"E29+E30","v":0},{"$f":"F29+F30","v":0},{"$f":"G29+G30","v":0},{"$f":"H29+H30","v":0},0,null,"Investiční náklady"]
[null,null,"Dlouhodobý hmotný majetek","Kč",null,null,null,null,0," ","Dlouhodobý hmotný majetek"]
[null,null,"Dlouhodobý nehmotný majetek","Kč",null,null,null,null,0,null,"Dlouhodobý nehmotný majetek"]
[null,"C","Služby","Kč",null,null,null,null,0," ","Služby"]
[null,"D","Ostatní náklady","Kč",{"$f":"E33+E34+E35","v":0},{"$f":"F33+F34+F35","v":0},{"$f":"G33+G34+G35","v":0},{"$f":"H33+H34+H35","v":0},0,null,"Ostatní náklady"]
[null,null,"Další provozní náklady","Kč",null,null,null,null,0," ","Další provozní náklady"]
[null,null,"Cestovní náhrady","Kč",null,null,null,null,0," ","Cestovní náhrady"]
[null,null,"Nepřímé náklady (režie)","Kč",null,null,null,null,0," ","Nepřímé náklady (režie)"]
[null,"E","Subdodávky","Kč",{"$f":"SUM(E37:E46)","v":0},{"$f":"SUM(F37:F46)","v":0},{"$f":"SUM(G37:G46)","v":0},{"$f":"SUM(H37:H46)","v":0},0,null,"Subdodávky"]
[null,null,"Subdodavatel 1","Kč",null,null,null,null,0,null,"Subdodavatel 1"]
[null,null,"Subdodavatel 2","Kč",null,null,null,null,{"$f":"SUM(E38:H38)","v":0},null,"Subdodavatel 2"]
[null,null,"Subdodavatel 3","Kč",null,null,null,null,0,null,"Subdodavatel 3"]
[null,null,"Subdodavatel 4","Kč",null,null,null,null,0,null,"Subdodavatel 4"]
[null,null,"Subdodavatel 5","Kč",null,null,null,null,0,null,"Subdodavatel 5"]
[null,null,"Subdodavatel 6","Kč",null,null,null,null,0,null,"Subdodavatel 6"]
[null,null,"Subdodavatel 7","Kč",null,null,null,null,0,null,"Subdodavatel 7"]
[null,null,"Subdodavatel 8","Kč",null,null,null,null,0,null,"Subdodavatel 8"]
[null,null,"Subdodavatel 9","Kč",null,null,null,null,0,null,"Subdodavatel 9"]
[null,null,"Subdodavatel 10","Kč",null,null,null,null,0,null,"Subdodavatel 10"]
[null,null,"NÁKLADY CELKEM","Kč",{"$f":"SUM(E27,E28,E31,E32,E36)","v":0},{"$f":"SUM(F27,F28,F31,F32,F36)","v":0},{"$f":"SUM(G27,G28,G31,G32,G36)","v":0},{"$f":"SUM(H27,H28,H31,H32,H36)","v":0},{"$f":"SUM(I27,I28,I31,I32,I36)","v":0}]
[null,null,"Zdroje ","Jednotka","Rok ",null,null,null,"Celkem"]
[null,null,null,null,{"$f":"E26","v":0},{"$f":"F26","v":0},{"$f":"G26","v":0},{"$f":"H26","v":0}]
[null,"ZD","Podpora","Kč",{"$f":"E47","v":0},{"$f":"F47","v":0},{"$f":"G47","v":0},{"$f":"H47","v":0},{"$f":"SUM(E50:H50)","v":0}]
[null,"ZDI","Z toho investiční podpora","Kč",{"$f":"E28","v":0},{"$f":"F28","v":0},{"$f":"G28","v":0},{"$f":"H28","v":0},{"$f":"SUM(E51:H51)","v":0}]
[null,"ZDN","Z toho neinvestiční podpora","Kč",{"$f":"E27+E31+E32+E36","v":0},{"$f":"F27+F31+F32+F36","v":0},{"$f":"G27+G31+G32+G36","v":0},{"$f":"H27+H31+H32+H36","v":0},{"$f":"SUM(E52:H52)","v":0}]
[null,"ZC","ZDROJE CELKEM","Kč",{"$f":"E51+E52","v":0},{"$f":"F51+F52","v":0},{"$f":"G51+G52","v":0},{"$f":"H51+H52","v":0},{"$f":"SUM(E53:H53)","v":0}]
[null,null,"Míra podpory","%",{"$f":"E50/E47","v":{"$error":"#DIV/0!"}},{"$f":"F50/F47","v":{"$error":"#DIV/0!"}},{"$f":"G50/G47","v":{"$error":"#DIV/0!"}},{"$f":"H50/H47","v":{"$error":"#DIV/0!"}},{"$f":"I50/I47","v":{"$error":"#DIV/0!"}}]
[]
[]
[]
[]
[]
[]
["Vysvětlivky:"]
[]
["1 Rok rrrr - uveďte příslušný kalendářní rok řešení projektu"]
["A - Specifikujte počet osob,  jejich úvazky a mzdu/plat odpovídající úvazku výzkumného týmu; "]
["B - Uveďte druh investice, pořizovací cenu za ks, počet kusů, podíl využití, odpisovou skupinu"]
["C - Specifikujte druh služeb"]
["D - Další provozní náklady - specifikujte druh pořízeného nákladu, u drobného majetku uveďte pořizovací cenu"]
["D - Cestovní náhrady - konference, výstavy aj. v ČR a zahraničí"]
["D - Nepřímé náklady (režie) - zvolte metodu vykazování nepřímých nákladů (full cost, 20 %)"]
["E - Specifikujte subdodávky - dle potřeby přidejte řádky"]

{"sheet":"Další účastník 6","index":7,"n_rows":70,"n_cols":11,"rows_kept":70,"cut":false,"hidden":true,"merged":[[47,1,48,1],[47,2,48,2],[47,3,48,3],[47,4,47,7],[47,8,48,8],[21,1,21,3],[22,1,22,2],[22,3,22,8],[23,1,23,2],[23,3,23,8],[24,1,25,1],[24,2,25,2],[24,3,25,3],[24,4,24,7],[24,8,25,8]]}
[]
[]
[]
[null,null,"Náklady",{"$f":" E26& \" (v Kč)\"","v":" (v Kč)"},{"$f":" F26& \" (v Kč)\"","v":" (v Kč)"},{"$f":" G26& \" (v Kč)\"","v":" (v Kč)"},{"$f":" H26& \" (v Kč)\"","v":" (v Kč)"},"Celkem (v Kč)"]
[null,"A","Osobní náklady",{"$f":"E27","v":0},0,0,0,{"$f":"SUM(D5:G5)","v":0}]
[null,"B","Investiční náklady",0,0,0,0,{"$f":"SUM(D6:G6)","v":0}]
[null,"C","Služby",{"$f":"E31","v":0},0,0,0,{"$f":"SUM(D7:G7)","v":0}]
[null,"D","Ostatní náklady",0,0,0,0,{"$f":"SUM(D8:G8)","v":0}]
[null,"E","Subdodávky",{"$f":"E36","v":0},{"$f":"F36","v":0},{"$f":"G36","v":0},{"$f":"H36","v":0},{"$f":"SUM(D9:G9)","v":0}]
[null,null,"NÁKLADY CELKEM",{"$f":"SUM(D5,D6,D7,D8,D9)","v":0},{"$f":"SUM(E5,E6,E7,E8,E9)","v":0},{"$f":"SUM(F5,F6,F7,F8,F9)","v":0},{"$f":"SUM(G5,G6,G7,G8,G9)","v":0},{"$f":"SUM(H5,H6,H7,H8,H9)","v":0}]
[null,null,"Zdroje ",{"$f":"D4","v":" (v Kč)"},{"$f":"E4","v":" (v Kč)"},{"$f":"F4","v":" (v Kč)"},{"$f":"G4","v":" (v Kč)"},"Celkem (v Kč)"]
[null,"ZD","Podpora",{"$f":"E50","v":0},0,0,0,{"$f":"SUM(D12:G12)","v":0}]
[null,"ZDI","Z toho investiční podpora",0,0,0,0,{"$f":"SUM(D13:G13)","v":0}]
[null,"ZDN","Z toho neinvestiční podpora",0,0,0,0,{"$f":"SUM(D14:G14)","v":0}]
[null,"ZO","Ostatní veřejné zdroje",0,0,0,0,0]
[null,"ZN","Neveřejné zdroje",0,0,0,0,0]
[null,"ZC","ZDROJE CELKEM",{"$f":"SUM(D12)","v":0},{"$f":"SUM(E12)","v":0},{"$f":"SUM(F12)","v":0},{"$f":"SUM(G12)","v":0},{"$f":"SUM(D17:G17)","v":0}]
[null,null,"Míra podpory",{"$f":"IF(D10=0,0,D12/D10)","v":0},{"$f":"IF(E10=0,0,E12/E10)","v":0},{"$f":"IF(F10=0,0,F12/F10)","v":0},{"$f":"IF(G10=0,0,G12/G10)","v":0},{"$f":"IF(H10=0,0,H12/H10)","v":0}]
[]
[]
[]
[null,"Zvolená metoda vykazování nepřímých nákladů",null,null,"full cost",null,0.2]
[null,"Identifikační kód"]
[null,"Název uchazeče"]
[null,null,"Náklady","Jednotka","Rok1",null,null,null,"Celkem"]
[null,null,null,null,null,null,null,null,null,"Popis"]
[null,"A","Osobní náklady","Kč",0,null,null,null,{"$f":"SUM(E27:H27)","v":0}," ","Osobní náklady"]
[null,"B","Investiční náklady","Kč",{"$f":"E29+E30","v":0},{"$f":"F29+F30","v":0},{"$f":"G29+G30","v":0},{"$f":"H29+H30","v":0},0,null,"Investiční náklady"]
[null,null,"Dlouhodobý hmotný majetek","Kč",null,null,null,null,0," ","Dlouhodobý hmotný majetek"]
[null,null,"Dlouhodobý nehmotný majetek","Kč",null,null,null,null,0,null,"Dlouhodobý nehmotný majetek"]
[null,"C","Služby","Kč",null,null,null,null,0," ","Služby"]
[null,"D","Ostatní náklady","Kč",{"$f":"E33+E34+E35","v":0},{"$f":"F33+F34+F35","v":0},{"$f":"G33+G34+G35","v":0},{"$f":"H33+H34+H35","v":0},0,null,"Ostatní náklady"]
[null,null,"Další provozní náklady","Kč",null,null,null,null,0," ","Další provozní náklady"]
[null,null,"Cestovní náhrady","Kč",null,null,null,null,0," ","Cestovní náhrady"]
[null,null,"Nepřímé náklady (režie)","Kč",null,null,null,null,0," ","Nepřímé náklady (režie)"]
[null,"E","Subdodávky","Kč",{"$f":"SUM(E37:E46)","v":0},{"$f":"SUM(F37:F46)","v":0},{"$f":"SUM(G37:G46)","v":0},{"$f":"SUM(H37:H46)","v":0},0,null,"Subdodávky"]
[null,null,"Subdodavatel 1","Kč",null,null,null,null,0,null,"Subdodavatel 1"]
[null,null,"Subdodavatel 2","Kč",null,null,null,null,{"$f":"SUM(E38:H38)","v":0},null,"Subdodavatel 2"]
[null,null,"Subdodavatel 3","Kč",null,null,null,null,0,null,"Subdodavatel 3"]
[null,null,"Subdodavatel 4","Kč",null,null,null,null,0,null,"Subdodavatel 4"]
[null,null,"Subdodavatel 5","Kč",null,null,null,null,0,null,"Subdodavatel 5"]
[null,null,"Subdodavatel 6","Kč",null,null,null,null,0,null,"Subdodavatel 6"]
[null,null,"Subdodavatel 7","Kč",null,null,null,null,0,null,"Subdodavatel 7"]
[null,null,"Subdodavatel 8","Kč",null,null,null,null,0,null,"Subdodavatel 8"]
[null,null,"Subdodavatel 9","Kč",null,null,null,null,0,null,"Subdodavatel 9"]
[null,null,"Subdodavatel 10","Kč",null,null,null,null,0,null,"Subdodavatel 10"]
[null,null,"NÁKLADY CELKEM","Kč",{"$f":"SUM(E27,E28,E31,E32,E36)","v":0},{"$f":"SUM(F27,F28,F31,F32,F36)","v":0},{"$f":"SUM(G27,G28,G31,G32,G36)","v":0},{"$f":"SUM(H27,H28,H31,H32,H36)","v":0},{"$f":"SUM(I27,I28,I31,I32,I36)","v":0}]
[null,null,"Zdroje ","Jednotka","Rok ",null,null,null,"Celkem"]
[null,null,null,null,{"$f":"E26","v":0},{"$f":"F26","v":0},{"$f":"G26","v":0},{"$f":"H26","v":0}]
[null,"ZD","Podpora","Kč",{"$f":"E47","v":0},{"$f":"F47","v":0},{"$f":"G47","v":0},{"$f":"H47","v":0},{"$f":"SUM(E50:H50)","v":0}]
[null,"ZDI","Z toho investiční podpora","Kč",{"$f":"E28","v":0},{"$f":"F28","v":0},{"$f":"G28","v":0},{"$f":"H28","v":0},{"$f":"SUM(E51:H51)","v":0}]
[null,"ZDN","Z toho neinvestiční podpora","Kč",{"$f":"E27+E31+E32+E36","v":0},{"$f":"F27+F31+F32+F36","v":0},{"$f":"G27+G31+G32+G36","v":0},{"$f":"H27+H31+H32+H36","v":0},{"$f":"SUM(E52:H52)","v":0}]
[null,"ZC","ZDROJE CELKEM","Kč",{"$f":"E51+E52","v":0},{"$f":"F51+F52","v":0},{"$f":"G51+G52","v":0},{"$f":"H51+H52","v":0},{"$f":"SUM(E53:H53)","v":0}]
[null,null,"Míra podpory","%",{"$f":"E50/E47","v":{"$error":"#DIV/0!"}},{"$f":"F50/F47","v":{"$error":"#DIV/0!"}},{"$f":"G50/G47","v":{"$error":"#DIV/0!"}},{"$f":"H50/H47","v":{"$error":"#DIV/0!"}},{"$f":"I50/I47","v":{"$error":"#DIV/0!"}}]
[]
[]
[]
[]
[]
[]
["Vysvětlivky:"]
[]
["1 Rok rrrr - uveďte příslušný kalendářní rok řešení projektu"]
["A - Specifikujte počet osob,  jejich úvazky a mzdu/plat odpovídající úvazku výzkumného týmu; "]
["B - Uveďte druh investice, pořizovací cenu za ks, počet kusů, podíl využití, odpisovou skupinu"]
["C - Specifikujte druh služeb"]
["D - Další provozní náklady - specifikujte druh pořízeného nákladu, u drobného majetku uveďte pořizovací cenu"]
["D - Cestovní náhrady - konference, výstavy aj. v ČR a zahraničí"]
["D - Nepřímé náklady (režie) - zvolte metodu vykazování nepřímých nákladů (full cost, 20 %)"]
["E - Specifikujte subdodávky - dle potřeby přidejte řádky"]

{"sheet":"Další účastník 7","index":8,"n_rows":70,"n_cols":11,"rows_kept":70,"cut":false,"hidden":true,"merged":[[47,1,48,1],[47,2,48,2],[47,3,48,3],[47,4,47,7],[47,8,48,8],[21,1,21,3],[22,1,22,2],[22,3,22,8],[23,1,23,2],[23,3,23,8],[24,1,25,1],[24,2,25,2],[24,3,25,3],[24,4,24,7],[24,8,25,8]]}
[]
[]
[]
[null,null,"Náklady",{"$f":" E26& \" (v Kč)\"","v":" (v Kč)"},{"$f":" F26& \" (v Kč)\"","v":" (v Kč)"},{"$f":" G26& \" (v Kč)\"","v":" (v Kč)"},{"$f":" H26& \" (v Kč)\"","v":" (v Kč)"},"Celkem (v Kč)"]
[null,"A","Osobní náklady",{"$f":"E27","v":0},0,0,0,{"$f":"SUM(D5:G5)","v":0}]
[null,"B","Investiční náklady",0,0,0,0,{"$f":"SUM(D6:G6)","v":0}]
[null,"C","Služby",{"$f":"E31","v":0},0,0,0,{"$f":"SUM(D7:G7)","v":0}]
[null,"D","Ostatní náklady",0,0,0,0,{"$f":"SUM(D8:G8)","v":0}]
[null,"E","Subdodávky",{"$f":"E36","v":0},{"$f":"F36","v":0},{"$f":"G36","v":0},{"$f":"H36","v":0},{"$f":"SUM(D9:G9)","v":0}]
[null,null,"NÁKLADY CELKEM",{"$f":"SUM(D5,D6,D7,D8,D9)","v":0},{"$f":"SUM(E5,E6,E7,E8,E9)","v":0},{"$f":"SUM(F5,F6,F7,F8,F9)","v":0},{"$f":"SUM(G5,G6,G7,G8,G9)","v":0},{"$f":"SUM(H5,H6,H7,H8,H9)","v":0}]
[null,null,"Zdroje ",{"$f":"D4","v":" (v Kč)"},{"$f":"E4","v":" (v Kč)"},{"$f":"F4","v":" (v Kč)"},{"$f":"G4","v":" (v Kč)"},"Celkem (v Kč)"]
[null,"ZD","Podpora",{"$f":"E50","v":0},0,0,0,{"$f":"SUM(D12:G12)","v":0}]
[null,"ZDI","Z toho investiční podpora",0,0,0,0,{"$f":"SUM(D13:G13)","v":0}]
[null,"ZDN","Z toho neinvestiční podpora",0,0,0,0,{"$f":"SUM(D14:G14)","v":0}]
[null,"ZO","Ostatní veřejné zdroje",0,0,0,0,0]
[null,"ZN","Neveřejné zdroje",0,0,0,0,0]
[null,"ZC","ZDROJE CELKEM",{"$f":"SUM(D12)","v":0},{"$f":"SUM(E12)","v":0},{"$f":"SUM(F12)","v":0},{"$f":"SUM(G12)","v":0},{"$f":"SUM(D17:G17)","v":0}]
[null,null,"Míra podpory",{"$f":"IF(D10=0,0,D12/D10)","v":0},{"$f":"IF(E10=0,0,E12/E10)","v":0},{"$f":"IF(F10=0,0,F12/F10)","v":0},{"$f":"IF(G10=0,0,G12/G10)","v":0},{"$f":"IF(H10=0,0,H12/H10)","v":0}]
[]
[]
[]
[null,"Zvolená metoda vykazování nepřímých nákladů",null,null,"full cost",null,0.2]
[null,"Identifikační kód"]
[null,"Název uchazeče"]
[null,null,"Náklady","Jednotka","Rok1",null,null,null,"Celkem"]
[null,null,null,null,null,null,null,null,null,"Popis"]
[null,"A","Osobní náklady","Kč",0,null,null,null,{"$f":"SUM(E27:H27)","v":0}," ","Osobní náklady"]
[null,"B","Investiční náklady","Kč",{"$f":"E29+E30","v":0},{"$f":"F29+F30","v":0},{"$f":"G29+G30","v":0},{"$f":"H29+H30","v":0},0,null,"Investiční náklady"]
[null,null,"Dlouhodobý hmotný majetek","Kč",null,null,null,null,0,null,"Dlouhodobý hmotný majetek"]
[null,null,"Dlouhodobý nehmotný majetek","Kč",null,null,null,null,0,null,"Dlouhodobý nehmotný majetek"]
[null,"C","Služby","Kč",null,null,null,null,0,null,"Služby"]
[null,"D","Ostatní náklady","Kč",{"$f":"E33+E34+E35","v":0},{"$f":"F33+F34+F35","v":0},{"$f":"G33+G34+G35","v":0},{"$f":"H33+H34+H35","v":0},0,null,"Ostatní náklady"]
[null,null,"Další provozní náklady","Kč",null,null,null,null,0,null,"Další provozní náklady"]
[null,null,"Cestovní náhrady","Kč",null,null,null,null,0,null,"Cestovní náhrady"]
[null,null,"Nepřímé náklady (režie)","Kč",null,null,null,null,0,null,"Nepřímé náklady (režie)"]
[null,"E","Subdodávky","Kč",{"$f":"SUM(E37:E46)","v":0},{"$f":"SUM(F37:F46)","v":0},{"$f":"SUM(G37:G46)","v":0},{"$f":"SUM(H37:H46)","v":0},0,null,"Subdodávky"]
[null,null,"Subdodavatel 1","Kč",null,null,null,null,0,null,"Subdodavatel 1"]
[null,null,"Subdodavatel 2","Kč",null,null,null,null,{"$f":"SUM(E38:H38)","v":0},null,"Subdodavatel 2"]
[null,null,"Subdodavatel 3","Kč",null,null,null,null,0,null,"Subdodavatel 3"]
[null,null,"Subdodavatel 4","Kč",null,null,null,null,0,null,"Subdodavatel 4"]
[null,null,"Subdodavatel 5","Kč",null,null,null,null,0,null,"Subdodavatel 5"]
[null,null,"Subdodavatel 6","Kč",null,null,null,null,0,null,"Subdodavatel 6"]
[null,null,"Subdodavatel 7","Kč",null,null,null,null,0,null,"Subdodavatel 7"]
[null,null,"Subdodavatel 8","Kč",null,null,null,null,0,null,"Subdodavatel 8"]
[null,null,"Subdodavatel 9","Kč",null,null,null,null,0,null,"Subdodavatel 9"]
[null,null,"Subdodavatel 10","Kč",null,null,null,null,0,null,"Subdodavatel 10"]
[null,null,"NÁKLADY CELKEM","Kč",{"$f":"SUM(E27,E28,E31,E32,E36)","v":0},{"$f":"SUM(F27,F28,F31,F32,F36)","v":0},{"$f":"SUM(G27,G28,G31,G32,G36)","v":0},{"$f":"SUM(H27,H28,H31,H32,H36)","v":0},{"$f":"SUM(I27,I28,I31,I32,I36)","v":0}]
[null,null,"Zdroje ","Jednotka","Rok ",null,null,null,"Celkem"]
[null,null,null,null,{"$f":"E26","v":0},{"$f":"F26","v":0},{"$f":"G26","v":0},{"$f":"H26","v":0}]
[null,"ZD","Podpora","Kč",{"$f":"E47","v":0},{"$f":"F47","v":0},{"$f":"G47","v":0},{"$f":"H47","v":0},{"$f":"SUM(E50:H50)","v":0}]
[null,"ZDI","Z toho investiční podpora","Kč",{"$f":"E28","v":0},{"$f":"F28","v":0},{"$f":"G28","v":0},{"$f":"H28","v":0},{"$f":"SUM(E51:H51)","v":0}]
[null,"ZDN","Z toho neinvestiční podpora","Kč",{"$f":"E27+E31+E32+E36","v":0},{"$f":"F27+F31+F32+F36","v":0},{"$f":"G27+G31+G32+G36","v":0},{"$f":"H27+H31+H32+H36","v":0},{"$f":"SUM(E52:H52)","v":0}]
[null,"ZC","ZDROJE CELKEM","Kč",{"$f":"E51+E52","v":0},{"$f":"F51+F52","v":0},{"$f":"G51+G52","v":0},{"$f":"H51+H52","v":0},{"$f":"SUM(E53:H53)","v":0}]
[null,null,"Míra podpory","%",{"$f":"E50/E47","v":{"$error":"#DIV/0!"}},{"$f":"F50/F47","v":{"$error":"#DIV/0!"}},{"$f":"G50/G47","v":{"$error":"#DIV/0!"}},{"$f":"H50/H47","v":{"$error":"#DIV/0!"}},{"$f":"I50/I47","v":{"$error":"#DIV/0!"}}]
[]
[]
[]
[]
[]
[]
["Vysvětlivky:"]
[]
["1 Rok rrrr - uveďte příslušný kalendářní rok řešení projektu"]
["A - Specifikujte počet osob,  jejich úvazky a mzdu/plat odpovídající úvazku výzkumného týmu; "]
["B - Uveďte druh investice, pořizovací cenu za ks, počet kusů, podíl využití, odpisovou skupinu"]
["C - Specifikujte druh služeb"]
["D - Další provozní náklady - specifikujte druh pořízeného nákladu, u drobného majetku uveďte pořizovací cenu"]
["D - Cestovní náhrady - konference, výstavy aj. v ČR a zahraničí"]
["D - Nepřímé náklady (režie) - zvolte metodu vykazování nepřímých nákladů (full cost, 20 %)"]
["E - Specifikujte subdodávky - dle potřeby přidejte řádky"]

{"sheet":"Další účastník 8","index":9,"n_rows":70,"n_cols":11,"rows_kept":70,"cut":false,"hidden":true,"merged":[[47,1,48,1],[47,2,48,2],[47,3,48,3],[47,4,47,7],[47,8,48,8],[21,1,21,3],[22,1,22,2],[22,3,22,8],[23,1,23,2],[23,3,23,8],[24,1,25,1],[24,2,25,2],[24,3,25,3],[24,4,24,7],[24,8,25,8]]}
[]
[]
[]
[null,null,"Náklady",{"$f":" E26& \" (v Kč)\"","v":" (v Kč)"},{"$f":" F26& \" (v Kč)\"","v":" (v Kč)"},{"$f":" G26& \" (v Kč)\"","v":" (v Kč)"},{"$f":" H26& \" (v Kč)\"","v":" (v Kč)"},"Celkem (v Kč)"]
[null,"A","Osobní náklady",{"$f":"E27","v":0},0,0,0,{"$f":"SUM(D5:G5)","v":0}]
[null,"B","Investiční náklady",0,0,0,0,{"$f":"SUM(D6:G6)","v":0}]
[null,"C","Služby",{"$f":"E31","v":0},0,0,0,{"$f":"SUM(D7:G7)","v":0}]
[null,"D","Ostatní náklady",0,0,0,0,{"$f":"SUM(D8:G8)","v":0}]
[null,"E","Subdodávky",{"$f":"E36","v":0},{"$f":"F36","v":0},{"$f":"G36","v":0},{"$f":"H36","v":0},{"$f":"SUM(D9:G9)","v":0}]
[null,null,"NÁKLADY CELKEM",{"$f":"SUM(D5,D6,D7,D8,D9)","v":0},{"$f":"SUM(E5,E6,E7,E8,E9)","v":0},{"$f":"SUM(F5,F6,F7,F8,F9)","v":0},{"$f":"SUM(G5,G6,G7,G8,G9)","v":0},{"$f":"SUM(H5,H6,H7,H8,H9)","v":0}]
[null,null,"Zdroje ",{"$f":"D4","v":" (v Kč)"},{"$f":"E4","v":" (v Kč)"},{"$f":"F4","v":" (v Kč)"},{"$f":"G4","v":" (v Kč)"},"Celkem (v Kč)"]
[null,"ZD","Podpora",{"$f":"E50","v":0},0,0,0,{"$f":"SUM(D12:G12)","v":0}]
[null,"ZDI","Z toho investiční podpora",0,0,0,0,{"$f":"SUM(D13:G13)","v":0}]
[null,"ZDN","Z toho neinvestiční podpora",0,0,0,0,{"$f":"SUM(D14:G14)","v":0}]
[null,"ZO","Ostatní veřejné zdroje",0,0,0,0,0]
[null,"ZN","Neveřejné zdroje",0,0,0,0,0]
[null,"ZC","ZDROJE CELKEM",{"$f":"SUM(D12)","v":0},{"$f":"SUM(E12)","v":0},{"$f":"SUM(F12)","v":0},{"$f":"SUM(G12)","v":0},{"$f":"SUM(D17:G17)","v":0}]
[null,null,"Míra podpory",{"$f":"IF(D10=0,0,D12/D10)","v":0},{"$f":"IF(E10=0,0,E12/E10)","v":0},{"$f":"IF(F10=0,0,F12/F10)","v":0},{"$f":"IF(G10=0,0,G12/G10)","v":0},{"$f":"IF(H10=0,0,H12/H10)","v":0}]
[]
[]
[]
[null,"Zvolená metoda vykazování nepřímých nákladů",null,null,"full cost",null,0.2]
[null,"Identifikační kód"]
[null,"Název uchazeče"]
[null,null,"Náklady","Jednotka","Rok1",null,null,null,"Celkem"]
[null,null,null,null,null,null,null,null,null,"Popis"]
[null,"A","Osobní náklady","Kč",0,null,null,null,{"$f":"SUM(E27:H27)","v":0}," ","Osobní náklady"]
[null,"B","Investiční náklady","Kč",{"$f":"E29+E30","v":0},{"$f":"F29+F30","v":0},{"$f":"G29+G30","v":0},{"$f":"H29+H30","v":0},0,null,"Investiční náklady"]
[null,null,"Dlouhodobý hmotný majetek","Kč",null,null,null,null,0,null,"Dlouhodobý hmotný majetek"]
[null,null,"Dlouhodobý nehmotný majetek","Kč",null,null,null,null,0,null,"Dlouhodobý nehmotný majetek"]
[null,"C","Služby","Kč",null,null,null,null,0,null,"Služby"]
[null,"D","Ostatní náklady","Kč",{"$f":"E33+E34+E35","v":0},{"$f":"F33+F34+F35","v":0},{"$f":"G33+G34+G35","v":0},{"$f":"H33+H34+H35","v":0},0,null,"Ostatní náklady"]
[null,null,"Další provozní náklady","Kč",null,null,null,null,0,null,"Další provozní náklady"]
[null,null,"Cestovní náhrady","Kč",null,null,null,null,0,null,"Cestovní náhrady"]
[null,null,"Nepřímé náklady (režie)","Kč",null,null,null,null,0,null,"Nepřímé náklady (režie)"]
[null,"E","Subdodávky","Kč",{"$f":"SUM(E37:E46)","v":0},{"$f":"SUM(F37:F46)","v":0},{"$f":"SUM(G37:G46)","v":0},{"$f":"SUM(H37:H46)","v":0},0,null,"Subdodávky"]
[null,null,"Subdodavatel 1","Kč",null,null,null,null,0,null,"Subdodavatel 1"]
[null,null,"Subdodavatel 2","Kč",null,null,null,null,{"$f":"SUM(E38:H38)","v":0},null,"Subdodavatel 2"]
[null,null,"Subdodavatel 3","Kč",null,null,null,null,0,null,"Subdodavatel 3"]
[null,null,"Subdodavatel 4","Kč",null,null,null,null,0,null,"Subdodavatel 4"]
[null,null,"Subdodavatel 5","Kč",null,null,null,null,0,null,"Subdodavatel 5"]
[null,null,"Subdodavatel 6","Kč",null,null,null,null,0,null,"Subdodavatel 6"]
[null,null,"Subdodavatel 7","Kč",null,null,null,null,0,null,"Subdodavatel 7"]
[null,null,"Subdodavatel 8","Kč",null,null,null,null,0,null,"Subdodavatel 8"]
[null,null,"Subdodavatel 9","Kč",null,null,null,null,0,null,"Subdodavatel 9"]
[null,null,"Subdodavatel 10","Kč",null,null,null,null,0,null,"Subdodavatel 10"]
[null,null,"NÁKLADY CELKEM","Kč",{"$f":"SUM(E27,E28,E31,E32,E36)","v":0},{"$f":"SUM(F27,F28,F31,F32,F36)","v":0},{"$f":"SUM(G27,G28,G31,G32,G36)","v":0},{"$f":"SUM(H27,H28,H31,H32,H36)","v":0},{"$f":"SUM(I27,I28,I31,I32,I36)","v":0}]
[null,null,"Zdroje ","Jednotka","Rok ",null,null,null,"Celkem"]
[null,null,null,null,{"$f":"E26","v":0},{"$f":"F26","v":0},{"$f":"G26","v":0},{"$f":"H26","v":0}]
[null,"ZD","Podpora","Kč",{"$f":"E47","v":0},{"$f":"F47","v":0},{"$f":"G47","v":0},{"$f":"H47","v":0},{"$f":"SUM(E50:H50)","v":0}]
[null,"ZDI","Z toho investiční podpora","Kč",{"$f":"E28","v":0},{"$f":"F28","v":0},{"$f":"G28","v":0},{"$f":"H28","v":0},{"$f":"SUM(E51:H51)","v":0}]
[null,"ZDN","Z toho neinvestiční podpora","Kč",{"$f":"E27+E31+E32+E36","v":0},{"$f":"F27+F31+F32+F36","v":0},{"$f":"G27+G31+G32+G36","v":0},{"$f":"H27+H31+H32+H36","v":0},{"$f":"SUM(E52:H52)","v":0}]
[null,"ZC","ZDROJE CELKEM","Kč",{"$f":"E51+E52","v":0},{"$f":"F51+F52","v":0},{"$f":"G51+G52","v":0},{"$f":"H51+H52","v":0},{"$f":"SUM(E53:H53)","v":0}]
[null,null,"Míra podpory","%",{"$f":"E50/E47","v":{"$error":"#DIV/0!"}},{"$f":"F50/F47","v":{"$error":"#DIV/0!"}},{"$f":"G50/G47","v":{"$error":"#DIV/0!"}},{"$f":"H50/H47","v":{"$error":"#DIV/0!"}},{"$f":"I50/I47","v":{"$error":"#DIV/0!"}}]
[]
[]
[]
[]
[]
[]
["Vysvětlivky:"]
[]
["1 Rok rrrr - uveďte příslušný kalendářní rok řešení projektu"]
["A - Specifikujte počet osob,  jejich úvazky a mzdu/plat odpovídající úvazku výzkumného týmu; "]
["B - Uveďte druh investice, pořizovací cenu za ks, počet kusů, podíl využití, odpisovou skupinu"]
["C - Specifikujte druh služeb"]
["D - Další provozní náklady - specifikujte druh pořízeného nákladu, u drobného majetku uveďte pořizovací cenu"]
["D - Cestovní náhrady - konference, výstavy aj. v ČR a zahraničí"]
["D - Nepřímé náklady (režie) - zvolte metodu vykazování nepřímých nákladů (full cost, 20 %)"]
["E - Specifikujte subdodávky - dle potřeby přidejte řádky"]

{"sheet":"Další účastník 9","index":10,"n_rows":70,"n_cols":11,"rows_kept":70,"cut":false,"hidden":true,"merged":[[47,1,48,1],[47,2,48,2],[47,3,48,3],[47,4,47,7],[47,8,48,8],[21,1,21,3],[22,1,22,2],[22,3,22,8],[23,1,23,2],[23,3,23,8],[24,1,25,1],[24,2,25,2],[24,3,25,3],[24,4,24,7],[24,8,25,8]]}
[]
[]
[]
[null,null,"Náklady",{"$f":" E26& \" (v Kč)\"","v":" (v Kč)"},{"$f":" F26& \" (v Kč)\"","v":" (v Kč)"},{"$f":" G26& \" (v Kč)\"","v":" (v Kč)"},{"$f":" H26& \" (v Kč)\"","v":" (v Kč)"},"Celkem (v Kč)"]
[null,"A","Osobní náklady",{"$f":"E27","v":0},0,0,0,{"$f":"SUM(D5:G5)","v":0}]
[null,"B","Investiční náklady",0,0,0,0,{"$f":"SUM(D6:G6)","v":0}]
[null,"C","Služby",{"$f":"E31","v":0},0,0,0,{"$f":"SUM(D7:G7)","v":0}]
[null,"D","Ostatní náklady",0,0,0,0,{"$f":"SUM(D8:G8)","v":0}]
[null,"E","Subdodávky",{"$f":"E36","v":0},{"$f":"F36","v":0},{"$f":"G36","v":0},{"$f":"H36","v":0},{"$f":"SUM(D9:G9)","v":0}]
[null,null,"NÁKLADY CELKEM",{"$f":"SUM(D5,D6,D7,D8,D9)","v":0},{"$f":"SUM(E5,E6,E7,E8,E9)","v":0},{"$f":"SUM(F5,F6,F7,F8,F9)","v":0},{"$f":"SUM(G5,G6,G7,G8,G9)","v":0},{"$f":"SUM(H5,H6,H7,H8,H9)","v":0}]
[null,null,"Zdroje ",{"$f":"D4","v":" (v Kč)"},{"$f":"E4","v":" (v Kč)"},{"$f":"F4","v":" (v Kč)"},{"$f":"G4","v":" (v Kč)"},"Celkem (v Kč)"]
[null,"ZD","Podpora",{"$f":"E50","v":0},0,0,0,{"$f":"SUM(D12:G12)","v":0}]
[null,"ZDI","Z toho investiční podpora",0,0,0,0,{"$f":"SUM(D13:G13)","v":0}]
[null,"ZDN","Z toho neinvestiční podpora",0,0,0,0,{"$f":"SUM(D14:G14)","v":0}]
[null,"ZO","Ostatní veřejné zdroje",0,0,0,0,0]
[null,"ZN","Neveřejné zdroje",0,0,0,0,0]
[null,"ZC","ZDROJE CELKEM",{"$f":"SUM(D12)","v":0},{"$f":"SUM(E12)","v":0},{"$f":"SUM(F12)","v":0},{"$f":"SUM(G12)","v":0},{"$f":"SUM(D17:G17)","v":0}]
[null,null,"Míra podpory",{"$f":"IF(D10=0,0,D12/D10)","v":0},{"$f":"IF(E10=0,0,E12/E10)","v":0},{"$f":"IF(F10=0,0,F12/F10)","v":0},{"$f":"IF(G10=0,0,G12/G10)","v":0},{"$f":"IF(H10=0,0,H12/H10)","v":0}]
[]
[]
[]
[null,"Zvolená metoda vykazování nepřímých nákladů",null,null,"full cost",null,0.2]
[null,"Identifikační kód"]
[null,"Název uchazeče"]
[null,null,"Náklady","Jednotka","Rok1",null,null,null,"Celkem"]
[null,null,null,null,null,null,null,null,null,"Popis"]
[null,"A","Osobní náklady","Kč",0,null,null,null,{"$f":"SUM(E27:H27)","v":0},null,"Osobní náklady"]
[null,"B","Investiční náklady","Kč",{"$f":"E29+E30","v":0},{"$f":"F29+F30","v":0},{"$f":"G29+G30","v":0},{"$f":"H29+H30","v":0},0,null,"Investiční náklady"]
[null,null,"Dlouhodobý hmotný majetek","Kč",null,null,null,null,0,null,"Dlouhodobý hmotný majetek"]
[null,null,"Dlouhodobý nehmotný majetek","Kč",null,null,null,null,0,null,"Dlouhodobý nehmotný majetek"]
[null,"C","Služby","Kč",null,null,null,null,0,null,"Služby"]
[null,"D","Ostatní náklady","Kč",{"$f":"E33+E34+E35","v":0},{"$f":"F33+F34+F35","v":0},{"$f":"G33+G34+G35","v":0},{"$f":"H33+H34+H35","v":0},0,null,"Ostatní náklady"]
[null,null,"Další provozní náklady","Kč",null,null,null,null,0,null,"Další provozní náklady"]
[null,null,"Cestovní náhrady","Kč",null,null,null,null,0,null,"Cestovní náhrady"]
[null,null,"Nepřímé náklady (režie)","Kč",null,null,null,null,0,null,"Nepřímé náklady (režie)"]
[null,"E","Subdodávky","Kč",{"$f":"SUM(E37:E46)","v":0},{"$f":"SUM(F37:F46)","v":0},{"$f":"SUM(G37:G46)","v":0},{"$f":"SUM(H37:H46)","v":0},0,null,"Subdodávky"]
[null,null,"Subdodavatel 1","Kč",null,null,null,null,0,null,"Subdodavatel 1"]
[null,null,"Subdodavatel 2","Kč",null,null,null,null,{"$f":"SUM(E38:H38)","v":0},null,"Subdodavatel 2"]
[null,null,"Subdodavatel 3","Kč",null,null,null,null,0,null,"Subdodavatel 3"]
[null,null,"Subdodavatel 4","Kč",null,null,null,null,0,null,"Subdodavatel 4"]
[null,null,"Subdodavatel 5","Kč",null,null,null,null,0,null,"Subdodavatel 5"]
[null,null,"Subdodavatel 6","Kč",null,null,null,null,0,null,"Subdodavatel 6"]
[null,null,"Subdodavatel 7","Kč",null,null,null,null,0,null,"Subdodavatel 7"]
[null,null,"Subdodavatel 8","Kč",null,null,null,null,0,null,"Subdodavatel 8"]
[null,null,"Subdodavatel 9","Kč",null,null,null,null,0,null,"Subdodavatel 9"]
[null,null,"Subdodavatel 10","Kč",null,null,null,null,0,null,"Subdodavatel 10"]
[null,null,"NÁKLADY CELKEM","Kč",{"$f":"SUM(E27,E28,E31,E32,E36)","v":0},{"$f":"SUM(F27,F28,F31,F32,F36)","v":0},{"$f":"SUM(G27,G28,G31,G32,G36)","v":0},{"$f":"SUM(H27,H28,H31,H32,H36)","v":0},{"$f":"SUM(I27,I28,I31,I32,I36)","v":0}]
[null,null,"Zdroje ","Jednotka","Rok ",null,null,null,"Celkem"]
[null,null,null,null,{"$f":"E26","v":0},{"$f":"F26","v":0},{"$f":"G26","v":0},{"$f":"H26","v":0}]
[null,"ZD","Podpora","Kč",{"$f":"E47","v":0},{"$f":"F47","v":0},{"$f":"G47","v":0},{"$f":"H47","v":0},{"$f":"SUM(E50:H50)","v":0}]
[null,"ZDI","Z toho investiční podpora","Kč",{"$f":"E28","v":0},{"$f":"F28","v":0},{"$f":"G28","v":0},{"$f":"H28","v":0},{"$f":"SUM(E51:H51)","v":0}]
[null,"ZDN","Z toho neinvestiční podpora","Kč",{"$f":"E27+E31+E32+E36","v":0},{"$f":"F27+F31+F32+F36","v":0},{"$f":"G27+G31+G32+G36","v":0},{"$f":"H27+H31+H32+H36","v":0},{"$f":"SUM(E52:H52)","v":0}]
[null,"ZC","ZDROJE CELKEM","Kč",{"$f":"E51+E52","v":0},{"$f":"F51+F52","v":0},{"$f":"G51+G52","v":0},{"$f":"H51+H52","v":0},{"$f":"SUM(E53:H53)","v":0}]
[null,null,"Míra podpory","%",{"$f":"E50/E47","v":{"$error":"#DIV/0!"}},{"$f":"F50/F47","v":{"$error":"#DIV/0!"}},{"$f":"G50/G47","v":{"$error":"#DIV/0!"}},{"$f":"H50/H47","v":{"$error":"#DIV/0!"}},{"$f":"I50/I47","v":{"$error":"#DIV/0!"}}]
[]
[]
[]
[]
[]
[]
["Vysvětlivky:"]
[]
["1 Rok rrrr - uveďte příslušný kalendářní rok řešení projektu"]
["A - Specifikujte počet osob,  jejich úvazky a mzdu/plat odpovídající úvazku výzkumného týmu; "]
["B - Uveďte druh investice, pořizovací cenu za ks, počet kusů, podíl využití, odpisovou skupinu"]
["C - Specifikujte druh služeb"]
["D - Další provozní náklady - specifikujte druh pořízeného nákladu, u drobného majetku uveďte pořizovací cenu"]
["D - Cestovní náhrady - konference, výstavy aj. v ČR a zahraničí"]
["D - Nepřímé náklady (režie) - zvolte metodu vykazování nepřímých nákladů (full cost, 20 %)"]
["E - Specifikujte subdodávky - dle potřeby přidejte řádky"]

{"sheet":"Další účastník 10","index":11,"n_rows":70,"n_cols":11,"rows_kept":70,"cut":false,"hidden":true,"merged":[[47,1,48,1],[47,2,48,2],[47,3,48,3],[47,4,47,7],[47,8,48,8],[21,1,21,3],[22,1,22,2],[22,3,22,8],[23,1,23,2],[23,3,23,8],[24,1,25,1],[24,2,25,2],[24,3,25,3],[24,4,24,7],[24,8,25,8]]}
[]
[]
[]
[null,null,"Náklady",{"$f":" E26& \" (v Kč)\"","v":" (v Kč)"},{"$f":" F26& \" (v Kč)\"","v":" (v Kč)"},{"$f":" G26& \" (v Kč)\"","v":" (v Kč)"},{"$f":" H26& \" (v Kč)\"","v":" (v Kč)"},"Celkem (v Kč)"]
[null,"A","Osobní náklady",{"$f":"E27","v":0},0,0,0,{"$f":"SUM(D5:G5)","v":0}]
[null,"B","Investiční náklady",0,0,0,0,{"$f":"SUM(D6:G6)","v":0}]
[null,"C","Služby",{"$f":"E31","v":0},0,0,0,{"$f":"SUM(D7:G7)","v":0}]
[null,"D","Ostatní náklady",0,0,0,0,{"$f":"SUM(D8:G8)","v":0}]
[null,"E","Subdodávky",{"$f":"E36","v":0},{"$f":"F36","v":0},{"$f":"G36","v":0},{"$f":"H36","v":0},{"$f":"SUM(D9:G9)","v":0}]
[null,null,"NÁKLADY CELKEM",{"$f":"SUM(D5,D6,D7,D8,D9)","v":0},{"$f":"SUM(E5,E6,E7,E8,E9)","v":0},{"$f":"SUM(F5,F6,F7,F8,F9)","v":0},{"$f":"SUM(G5,G6,G7,G8,G9)","v":0},{"$f":"SUM(H5,H6,H7,H8,H9)","v":0}]
[null,null,"Zdroje ",{"$f":"D4","v":" (v Kč)"},{"$f":"E4","v":" (v Kč)"},{"$f":"F4","v":" (v Kč)"},{"$f":"G4","v":" (v Kč)"},"Celkem (v Kč)"]
[null,"ZD","Podpora",{"$f":"E50","v":0},0,0,0,{"$f":"SUM(D12:G12)","v":0}]
[null,"ZDI","Z toho investiční podpora",0,0,0,0,{"$f":"SUM(D13:G13)","v":0}]
[null,"ZDN","Z toho neinvestiční podpora",0,0,0,0,{"$f":"SUM(D14:G14)","v":0}]
[null,"ZO","Ostatní veřejné zdroje",0,0,0,0,0]
[null,"ZN","Neveřejné zdroje",0,0,0,0,0]
[null,"ZC","ZDROJE CELKEM",{"$f":"SUM(D12)","v":0},{"$f":"SUM(E12)","v":0},{"$f":"SUM(F12)","v":0},{"$f":"SUM(G12)","v":0},{"$f":"SUM(D17:G17)","v":0}]
[null,null,"Míra podpory",{"$f":"IF(D10=0,0,D12/D10)","v":0},{"$f":"IF(E10=0,0,E12/E10)","v":0},{"$f":"IF(F10=0,0,F12/F10)","v":0},{"$f":"IF(G10=0,0,G12/G10)","v":0},{"$f":"IF(H10=0,0,H12/H10)","v":0}]
[]
[]
[]
[null,"Zvolená metoda vykazování nepřímých nákladů",null,null,"full cost",null,0.2]
[null,"Identifikační kód"]
[null,"Název uchazeče"]
[null,null,"Náklady","Jednotka","Rok1",null,null,null,"Celkem"]
[null,null,null,null,null,null,null,null,null,"Popis"]
[null,"A","Osobní náklady","Kč",0,null,null,null,{"$f":"SUM(E27:H27)","v":0}," ","Osobní náklady"]
[null,"B","Investiční náklady","Kč",{"$f":"E29+E30","v":0},{"$f":"F29+F30","v":0},{"$f":"G29+G30","v":0},{"$f":"H29+H30","v":0},0,null,"Investiční náklady"]
[null,null,"Dlouhodobý hmotný majetek","Kč",null,null,null,null,0,null,"Dlouhodobý hmotný majetek"]
[null,null,"Dlouhodobý nehmotný majetek","Kč",null,null,null,null,0,null,"Dlouhodobý nehmotný majetek"]
[null,"C","Služby","Kč",null,null,null,null,0,null,"Služby"]
[null,"D","Ostatní náklady","Kč",{"$f":"E33+E34+E35","v":0},{"$f":"F33+F34+F35","v":0},{"$f":"G33+G34+G35","v":0},{"$f":"H33+H34+H35","v":0},0,null,"Ostatní náklady"]
[null,null,"Další provozní náklady","Kč",null,null,null,null,0,null,"Další provozní náklady"]
[null,null,"Cestovní náhrady","Kč",null,null,null,null,0,null,"Cestovní náhrady"]
[null,null,"Nepřímé náklady (režie)","Kč",null,null,null,null,0,null,"Nepřímé náklady (režie)"]
[null,"E","Subdodávky","Kč",{"$f":"SUM(E37:E46)","v":0},{"$f":"SUM(F37:F46)","v":0},{"$f":"SUM(G37:G46)","v":0},{"$f":"SUM(H37:H46)","v":0},0,null,"Subdodávky"]
[null,null,"Subdodavatel 1","Kč",null,null,null,null,0,null,"Subdodavatel 1"]
[null,null,"Subdodavatel 2","Kč",null,null,null,null,{"$f":"SUM(E38:H38)","v":0},null,"Subdodavatel 2"]
[null,null,"Subdodavatel 3","Kč",null,null,null,null,0,null,"Subdodavatel 3"]
[null,null,"Subdodavatel 4","Kč",null,null,null,null,0,null,"Subdodavatel 4"]
[null,null,"Subdodavatel 5","Kč",null,null,null,null,0,null,"Subdodavatel 5"]
[null,null,"Subdodavatel 6","Kč",null,null,null,null,0,null,"Subdodavatel 6"]
[null,null,"Subdodavatel 7","Kč",null,null,null,null,0,null,"Subdodavatel 7"]
[null,null,"Subdodavatel 8","Kč",null,null,null,null,0,null,"Subdodavatel 8"]
[null,null,"Subdodavatel 9","Kč",null,null,null,null,0,null,"Subdodavatel 9"]
[null,null,"Subdodavatel 10","Kč",null,null,null,null,0,null,"Subdodavatel 10"]
[null,null,"NÁKLADY CELKEM","Kč",{"$f":"SUM(E27,E28,E31,E32,E36)","v":0},{"$f":"SUM(F27,F28,F31,F32,F36)","v":0},{"$f":"SUM(G27,G28,G31,G32,G36)","v":0},{"$f":"SUM(H27,H28,H31,H32,H36)","v":0},{"$f":"SUM(I27,I28,I31,I32,I36)","v":0}]
[null,null,"Zdroje ","Jednotka","Rok ",null,null,null,"Celkem"]
[null,null,null,null,{"$f":"E26","v":0},{"$f":"F26","v":0},{"$f":"G26","v":0},{"$f":"H26","v":0}]
[null,"ZD","Podpora","Kč",{"$f":"E47","v":0},{"$f":"F47","v":0},{"$f":"G47","v":0},{"$f":"H47","v":0},{"$f":"SUM(E50:H50)","v":0}]
[null,"ZDI","Z toho investiční podpora","Kč",{"$f":"E28","v":0},{"$f":"F28","v":0},{"$f":"G28","v":0},{"$f":"H28","v":0},{"$f":"SUM(E51:H51)","v":0}]
[null,"ZDN","Z toho neinvestiční podpora","Kč",{"$f":"E27+E31+E32+E36","v":0},{"$f":"F27+F31+F32+F36","v":0},{"$f":"G27+G31+G32+G36","v":0},{"$f":"H27+H31+H32+H36","v":0},{"$f":"SUM(E52:H52)","v":0}]
[null,"ZC","ZDROJE CELKEM","Kč",{"$f":"E51+E52","v":0},{"$f":"F51+F52","v":0},{"$f":"G51+G52","v":0},{"$f":"H51+H52","v":0},{"$f":"SUM(E53:H53)","v":0}]
[null,null,"Míra podpory","%",{"$f":"E50/E47","v":{"$error":"#DIV/0!"}},{"$f":"F50/F47","v":{"$error":"#DIV/0!"}},{"$f":"G50/G47","v":{"$error":"#DIV/0!"}},{"$f":"H50/H47","v":{"$error":"#DIV/0!"}},{"$f":"I50/I47","v":{"$error":"#DIV/0!"}}]
[]
[]
[]
[]
[]
[]
["Vysvětlivky:"]
[]
["1 Rok rrrr - uveďte příslušný kalendářní rok řešení projektu"]
["A - Specifikujte počet osob,  jejich úvazky a mzdu/plat odpovídající úvazku výzkumného týmu; "]
["B - Uveďte druh investice, pořizovací cenu za ks, počet kusů, podíl využití, odpisovou skupinu"]
["C - Specifikujte druh služeb"]
["D - Další provozní náklady - specifikujte druh pořízeného nákladu, u drobného majetku uveďte pořizovací cenu"]
["D - Cestovní náhrady - konference, výstavy aj. v ČR a zahraničí"]
["D - Nepřímé náklady (režie) - zvolte metodu vykazování nepřímých nákladů (full cost, 20 %)"]
["E - Specifikujte subdodávky - dle potřeby přidejte řádky"]